{"text_format":"3","workbook":"xlsx","n_sheets":5,"sheets":["Ogólnouczelniane","IBNiZ","Cz. III Opis przedmiotu zam.","Zał. 2 Formularz asort. ilości1","Zał. 2 Formularz asort. ilości2"],"not_rendered":{"images":2,"defined_names":7},"read":"whole","date_system":"1900"}

{"sheet":"Ogólnouczelniane","index":0,"n_rows":38,"n_cols":20,"rows_kept":38,"merged":[[3,1,37,1]]}
[]
[{"$nulls":4},1,2,3,4,5,6,7,8,9,10,11,12,13,14,15]
[null,null,"Ogólnouczelniane\ncz. I","Poz. opisu","Instytut Pedagogiki","Biuro ds. Kształcenia","Rektorat","Sekcja ds. Inwentaryzacji i Majatku","Katedra Neofilologii","Instytut Nauk Ścisłych i Technicznych","Instytut Biologii i nNauk o Ziemi","Instytut Prawa i Administracji","Kwestura","Instytut Nauk o Zdrowiu","IGSEiT","Sekcja Informatyki","Biblioteka Uczelniana","BFZ","SWFiS","ILOŚĆ RAZEM"]
[null,"CZĘŚĆ   I",{"$f":"'Cz. III Opis przedmiotu zam.'!D6","v":"Komputer stacjonarny ver. 1"},{"$f":"'Cz. III Opis przedmiotu zam.'!B7","v":"1.01"},null,1,null,null,2,{"$nulls":3},1,3,{"$nulls":5},{"$f":"SUM(E4:S4)","v":7}]
[null,null,{"$f":"'Cz. III Opis przedmiotu zam.'!D22","v":"Komputer stacjonarny ver. 2"},{"$f":"'Cz. III Opis przedmiotu zam.'!B23","v":"1.02"},{"$nulls":11},2,null,3,null,5]
[null,null,{"$f":"'Cz. III Opis przedmiotu zam.'!D37","v":"Monitor ver. 1"},{"$f":"'Cz. III Opis przedmiotu zam.'!B38","v":1.03},null,1,null,null,2,null,2,null,1,3,{"$nulls":5},9]
[null,null,{"$f":"'Cz. III Opis przedmiotu zam.'!D51","v":"Monitor ver. 2"},{"$f":"'Cz. III Opis przedmiotu zam.'!B52","v":1.04},{"$nulls":11},1,null,3,null,4]
[null,null,{"$f":"'Cz. III Opis przedmiotu zam.'!D66","v":"Monitor ver. 3"},{"$f":"'Cz. III Opis przedmiotu zam.'!B67","v":1.05},{"$nulls":11},1,{"$nulls":3},1]
[null,null,{"$f":"'Cz. III Opis przedmiotu zam.'!D80","v":"Laptop ver. 1"},{"$f":"'Cz. III Opis przedmiotu zam.'!B81","v":1.06},{"$nulls":9},1,{"$nulls":5},1]
[null,null,{"$f":"'Cz. III Opis przedmiotu zam.'!D110","v":"Laptop ver. 2"},{"$f":"'Cz. III Opis przedmiotu zam.'!B111","v":1.07},{"$nulls":3},1,{"$nulls":3},1,{"$nulls":3},2,{"$nulls":3},4]
[null,null,{"$f":"'Cz. III Opis przedmiotu zam.'!D138","v":"Laptop ver. 3"},{"$f":"'Cz. III Opis przedmiotu zam.'!B139","v":1.08},null,null,1,null,null,1,{"$nulls":9},2]
[null,null,{"$f":"'Cz. III Opis przedmiotu zam.'!D166","v":"Laptop ver. 4"},{"$f":"'Cz. III Opis przedmiotu zam.'!B167","v":1.09},1,{"$nulls":5},1,{"$nulls":8},2]
[null,null,{"$f":"'Cz. III Opis przedmiotu zam.'!D193","v":"Tablet ver. 1"},{"$f":"'Cz. III Opis przedmiotu zam.'!B194","v":"1.10"},{"$nulls":11},1,{"$nulls":3},1]
[null,null,{"$f":"'Cz. III Opis przedmiotu zam.'!D214","v":"Tablet ver. 2"},{"$f":"'Cz. III Opis przedmiotu zam.'!B215","v":"1.11"},{"$nulls":5},1,{"$nulls":9},1]
[null,null,{"$f":"'Cz. III Opis przedmiotu zam.'!D236","v":"Ekran ścienny 4:3 ręcznie rozwijany"},{"$f":"'Cz. III Opis przedmiotu zam.'!B237","v":1.12},null,6,{"$nulls":3},2,1,{"$nulls":8},9]
[null,null,{"$f":"'Cz. III Opis przedmiotu zam.'!D247","v":"Urządzenie wielofunkcyjne atramentowe"},{"$f":"'Cz. III Opis przedmiotu zam.'!B248","v":"1.13"},{"$nulls":14},1,1]
[null,null,{"$f":"'Cz. III Opis przedmiotu zam.'!D272","v":"Edytor grafiki wektorowej"},{"$f":"'Cz. III Opis przedmiotu zam.'!B273","v":"1.14"},{"$nulls":6},1,{"$nulls":8},1]
[null,null,{"$f":"'Cz. III Opis przedmiotu zam.'!D294","v":"Zewnętrzny dysk SSD"},{"$f":"'Cz. III Opis przedmiotu zam.'!B295","v":"1.15"},{"$nulls":9},4,null,3,null,3,null,10]
[null,null,{"$f":"'Cz. III Opis przedmiotu zam.'!D302","v":"Kamera internetowa USB z mikrofonem "},{"$f":"'Cz. III Opis przedmiotu zam.'!B303","v":"1.16"},{"$nulls":6},1,{"$nulls":8},1]
[null,null,{"$f":"'Cz. III Opis przedmiotu zam.'!D313","v":"Urządzenie wielofunkcyjne laserowe"},{"$f":"'Cz. III Opis przedmiotu zam.'!B314","v":"1.17"},{"$nulls":9},2,2,2,{"$nulls":3},6]
[null,null,{"$f":"'Cz. III Opis przedmiotu zam.'!D333","v":"Głosniki Bluetooth"},{"$f":"'Cz. III Opis przedmiotu zam.'!B334","v":"1.18"},{"$nulls":6},1,{"$nulls":8},1]
[null,null,{"$f":"'Cz. III Opis przedmiotu zam.'!D341","v":"Switch rack"},{"$f":"'Cz. III Opis przedmiotu zam.'!B342","v":"1.19"},{"$nulls":11},4,{"$nulls":3},4]
[null,null,{"$f":"'Cz. III Opis przedmiotu zam.'!D352","v":"Klawiatura i myszka bezprzewodowa"},{"$f":"'Cz. III Opis przedmiotu zam.'!B353","v":"1.20"},{"$nulls":11},3,null,4,null,7]
[null,null,{"$f":"'Cz. III Opis przedmiotu zam.'!D368","v":"Urządzenie testujące sieć LAN"},{"$f":"'Cz. III Opis przedmiotu zam.'!B369","v":"1.21"},{"$nulls":11},2,{"$nulls":3},2]
[null,null,{"$f":"'Cz. III Opis przedmiotu zam.'!D381","v":"Słuchawki nauszne z mikrofonem"},{"$f":"'Cz. III Opis przedmiotu zam.'!B382","v":1.22},{"$nulls":11},3,{"$nulls":3},3]
[null,null,{"$f":"'Cz. III Opis przedmiotu zam.'!D414","v":"Dysk SSD 1TB"},{"$f":"'Cz. III Opis przedmiotu zam.'!B415","v":1.23},{"$nulls":11},4,{"$nulls":3},4]
[null,null,{"$f":"'Cz. III Opis przedmiotu zam.'!D425","v":"Dysk SSD 512 GB SATA"},{"$f":"'Cz. III Opis przedmiotu zam.'!B426","v":1.24},{"$nulls":5},16,{"$nulls":6},10,null,null,26]
[null,null,{"$f":"'Cz. III Opis przedmiotu zam.'!D437","v":"Zasilacz ATX"},{"$f":"'Cz. III Opis przedmiotu zam.'!B438","v":1.25},{"$nulls":11},3,{"$nulls":3},3]
[null,null,{"$f":"'Cz. III Opis przedmiotu zam.'!D453","v":"Pamięć DDR4 SODIMM "},{"$f":"'Cz. III Opis przedmiotu zam.'!B454","v":1.26},{"$nulls":11},2,{"$nulls":3},2]
[null,null,{"$f":"'Cz. III Opis przedmiotu zam.'!D462","v":"Projektor ver. 1"},{"$f":"'Cz. III Opis przedmiotu zam.'!B463","v":1.27},{"$nulls":13},1,null,1]
[null,null,{"$f":"'Cz. III Opis przedmiotu zam.'!D486","v":"Dysk SSD 512 GB M.2"},{"$f":"'Cz. III Opis przedmiotu zam.'!B487","v":1.28},{"$nulls":5},47,{"$nulls":9},47]
[null,null,{"$f":"'Cz. III Opis przedmiotu zam.'!D497","v":"Uchwyt sufitowy"},{"$f":"'Cz. III Opis przedmiotu zam.'!B498","v":1.29},null,6,{"$nulls":13},6]
[null,null,{"$f":"'Cz. III Opis przedmiotu zam.'!D506","v":"Projektor multimedialny ver. 2 krótkoogniskowy"},{"$f":"'Cz. III Opis przedmiotu zam.'!B507","v":"1.30"},null,6,{"$nulls":13},6]
[null,null,{"$f":"'Cz. III Opis przedmiotu zam.'!D522","v":"Zasilacz UPS"},{"$f":"'Cz. III Opis przedmiotu zam.'!B523","v":1.31},null,1,{"$nulls":13},1]
[null,null,{"$f":"'Cz. III Opis przedmiotu zam.'!D547","v":"Pamięć RAM DDR4"},{"$f":"'Cz. III Opis przedmiotu zam.'!B548","v":1.32},null,24,{"$nulls":13},24]
[null,null,{"$f":"'Cz. III Opis przedmiotu zam.'!D555","v":"Przenośny dysk HDD 2,5\""},{"$f":"'Cz. III Opis przedmiotu zam.'!B556","v":1.33},null,2,{"$nulls":13},2]
[null,null,{"$f":"'Cz. III Opis przedmiotu zam.'!D562","v":"Ekran ścienny 16:9 ręcznie rozwijany"},{"$f":"'Cz. III Opis przedmiotu zam.'!B563","v":1.34},null,3,{"$nulls":13},3]
[null,null,{"$f":"'Cz. III Opis przedmiotu zam.'!D573","v":"Ekran ścienny 16:9, elektryczny"},{"$f":"'Cz. III Opis przedmiotu zam.'!B574","v":1.35},null,1,{"$nulls":13},1]

{"sheet":"IBNiZ","index":1,"n_rows":14,"n_cols":6,"rows_kept":14,"merged":[[3,1,13,1]]}
[]
[{"$nulls":4},1]
[null,null,"IBiZ\ncz. II","Poz. opisu","IBNiZ","ILOŚĆ RAZEM"]
[null,"CZĘŚĆ   II",{"$f":"'Cz. III Opis przedmiotu zam.'!D22","v":"Komputer stacjonarny ver. 2"},{"$f":"'Cz. III Opis przedmiotu zam.'!B23","v":"1.02"},40,{"$f":"SUM(E4:E4)","v":40}]
[null,null,{"$f":"'Cz. III Opis przedmiotu zam.'!D37","v":"Monitor ver. 1"},{"$f":"'Cz. III Opis przedmiotu zam.'!B38","v":1.03},25,25]
[null,null,{"$f":"'Cz. III Opis przedmiotu zam.'!D66","v":"Monitor ver. 3"},{"$f":"'Cz. III Opis przedmiotu zam.'!B67","v":1.05},20,20]
[null,null,{"$f":"'Cz. III Opis przedmiotu zam.'!D585","v":"Słuchawki przewodowe nauszne z mikrofonem"},{"$f":"'Cz. III Opis przedmiotu zam.'!B586","v":1.36},30,30]
[null,null,{"$f":"'Cz. III Opis przedmiotu zam.'!D607","v":"System nagłośnienia (subwoofer) "},{"$f":"'Cz. III Opis przedmiotu zam.'!B608","v":1.37},5,5]
[null,null,{"$f":"'Cz. III Opis przedmiotu zam.'!D629","v":"Monitor interaktywny z montażem nasciennym"},{"$f":"'Cz. III Opis przedmiotu zam.'!B630","v":1.38},5,5]
[null,null,{"$f":"'Cz. III Opis przedmiotu zam.'!D656","v":"Telewizor z montażem naściennym"},{"$f":"'Cz. III Opis przedmiotu zam.'!B657","v":1.39},4,4]
[null,null,{"$f":"'Cz. III Opis przedmiotu zam.'!D302","v":"Kamera internetowa USB z mikrofonem "},{"$f":"'Cz. III Opis przedmiotu zam.'!B303","v":"1.16"},40,40]
[null,null,{"$f":"'Cz. III Opis przedmiotu zam.'!D685","v":"Laptop ver. 5"},{"$f":"'Cz. III Opis przedmiotu zam.'!B686","v":"1.40"},3,3]
[null,null,{"$f":"'Cz. III Opis przedmiotu zam.'!D714","v":"Laptop ver. 6"},{"$f":"'Cz. III Opis przedmiotu zam.'!B715","v":1.41},3,3]
[null,null,{"$f":"'Cz. III Opis przedmiotu zam.'!D743","v":"Zestaw wideorejestratora z funkcją kamery"},{"$f":"'Cz. III Opis przedmiotu zam.'!B744","v":1.42},1,1]

{"sheet":"Cz. III Opis przedmiotu zam.","index":2,"n_rows":929,"n_cols":5,"rows_kept":929,"merged":[[2,1,2,4],[41,2,42,2],[44,2,46,2],[47,2,48,2],[55,2,57,2],[59,2,61,2],[62,2,63,2],[70,2,72,2],[74,2,75,2],[76,2,77,2],[81,2,82,2],[90,2,92,2],[94,2,96,2],[97,2,101,2],[102,2,105,2],[111,2,112,2],[120,2,122,2],[124,2,126,2],[127,2,131,2],[139,2,140,2],[148,2,150,2],[152,2,153,2],[154,2,157,2],[158,2,161,2],[167,2,168,2],[176,2,178,2],[180,2,181,2],[182,2,186,2],[200,2,201,2],[202,2,203,2],[207,2,208,2],[209,2,211,2],[221,2,222,2],[223,2,224,2],[225,2,226,2],[228,2,231,2],[232,2,233,2],[250,2,253,2],[261,2,263,2],[265,2,266,2],[267,2,268,2],[277,2,277,3],[278,2,278,3],[279,2,279,3],[280,2,280,3],[281,2,281,3],[282,2,282,3],[283,2,283,3],[284,2,284,3],[285,2,285,3],[286,2,286,3],[287,2,287,3],[288,2,288,3],[289,2,289,3],[290,2,290,3],[291,2,291,3],[315,2,316,2],[317,2,320,2],[326,2,328,2],[334,2,335,2],[353,2,354,2],[356,2,357,2],[363,2,364,2],[368,2,368,3],[371,2,377,2],[381,2,382,2],[384,2,385,2],[394,2,395,2],[398,2,401,2],[402,2,408,2],[409,2,410,2],[439,2,443,2],[445,2,449,2],[470,2,475,2],[478,2,479,2],[480,2,483,2],[509,2,519,2],[532,2,539,2],[540,2,544,2],[586,2,587,2],[597,2,600,2],[611,2,612,2],[613,2,617,2],[618,2,620,2],[623,2,626,2],[662,2,664,2],[665,2,667,2],[670,2,672,2],[676,2,681,2],[692,2,693,2],[696,2,697,2],[698,2,699,2],[700,2,702,2],[705,2,706,2],[709,2,711,2],[715,2,716,2],[723,2,725,2],[727,2,729,2],[731,2,732,2],[733,2,736,2],[743,2,743,3],[750,2,753,2],[757,2,758,2],[760,2,760,3],[772,2,772,3],[781,1,781,3],[788,2,788,3],[799,2,799,3],[808,2,808,3],[809,2,809,3],[830,1,830,3],[831,2,831,3],[833,2,833,3],[834,2,834,3],[835,2,835,3],[840,2,840,3],[844,2,844,3],[845,2,845,3],[854,2,854,3],[867,2,867,3],[869,2,869,3],[873,2,873,3],[875,2,875,3],[883,2,883,3],[928,2,928,3]]}
[null,"Część III Opis przedmiotu zamówienia"]
[]
[null,"Jeżeli w opisie przedmiotu zamówienia wskazano jakikolwiek znak towarowy, patent czy pochodzenie, należy przyjąć, że wskazane patenty, znaki towarowe, pochodzenie określają parametry techniczne, eksploatacyjne, użytkowe, co oznacza, że Zamawiający dopuszcza złożenie oferty w tej części przedmiotu zamówienia o równoważnych parametrach technicznych, eksploatacyjnych i użytkowych.\nW celu umożliwienia Zamawiającemu odpowiedniej weryfikacji zaoferowanego sprzętu lub oprogramowania pod kątem minimalnych wymagań należy podać dokładną nazwę producenta, model, procesor, nr katalogowy itp. Nie poduszcza się wpisania wyrażeń typu: spełnia, spełniający minimalne wymagania itd.  Wszystkie opisane parametry wymagane są wymaganiami minimalnymi. Zamawiający akceptuje rozwiązania o parametrach równoważnych lub lepszych, bez utraty funkcjonalności i wydajności."]
[]
[null,"Poz.",null,"Opis Zamawiającego","Parametr Oferowany / Opis Wykonawcy \n(producent i model, procesor i inne parametry )"]
[{"$nulls":3},"Komputer stacjonarny ver. 1"]
[null,"1.01","Typ: ","Komputer do obróbki tekstu, danych i grafiki"]
[null,null,"Procesor:"," - zgodny z architekturą x86 i x64\n - Procesor osiągający w teście PassMark CPU Mark wynik \n    min. 19500 punktów Zamawiający będzie weryfikował ten parametr na podstawie \n    danych z drugiej kolumny tabeli z wynikami testów procesorów, które są załącznikiem \n    do SWZ \n - Procesor musi obsługiwać 64 bitowe systemy "]
[null,null,"Ilość rdzeni:"," min. 6"]
[null,null,"Pamięć:"," min. 16 GB min. 3200MHz"]
[null,null,"Napęd  optyczny: ","DVD+/-RW"]
[null,null,"Dysk: ","min. SSD 512 GB"]
[null,null,"Karta graficzna: ","zintegrowana z procesorem i obsługą dekodowania sprzętowego VP9 i HEVC"]
[null,null,"Karta dźwiękowa:","dowolna, wej. mikrofonowe, wyj. słuchawkowe/ głośnikowe, wej. Liniowe"]
[null,null,"Komunikacja:","Wi-Fi 5 (802.11 a/b/g/n/ac)\nLAN 10/100/1000 Mbps\nBluetooth"]
[null,null,"Interface:","min. z przodu 2 x USB 3.2"]
[null,null,"Rodzaje wejść / wyjść:","min. HDMI, RJ45, wyj. słuchawkowe, wej. mikrofonowe, wej. audio liniowe, USB, DisplayPort"]
[null,null,"Dod. informacje:","Obudowa typu SFF,  klawiatura,  mysz optyczna"]
[null,null,"Pakiet oprogramowania biurowego","Rozszerzenie posiadanej i wykorzystywanej przez zamawiającego licencji na pakiet oprogramowania biurowego  \"MS Office Professional Plus 2019 EDU dla szkół i Uczelni lub oprogramowanie równorzędne. Licencja wieczysta (dożywotnia).  \nTenant do office:  officeapsl.onmicrosoft.com\n\nWymogi równorzedności zostały opisane w \"Przypisie 2\""]
[null,null,"System: ","Preinstalowany system operacyjny ver. 1,  klasy PC musi spełniać  wymagania według poniższego załącznika  (przypis 1) poprzez wbudowane mechanizmy, bez użycia dodatkowych aplikacji (np. Windows 10 / 11  prof.. lub równoważny wg opisu )."]
[]
[{"$nulls":3},"Komputer stacjonarny ver. 2"]
[null,"1.02","Typ: ","komputer stacjonarny do pracowni multimedialnej"]
[null,null,"Procesor:"," - zgodny z architekturą x86 i x64\n - Procesor osiągający w teście PassMark CPU Mark wynik \n    min. 19500 punktów Zamawiający będzie weryfikował ten parametr na podstawie \n    danych z drugiej kolumny tabeli z wynikami testów procesorów, które są załącznikiem \n    do SWZ \n - Procesor musi obsługiwać 64 bitowe systemy "]
[null,null,"Ilość rdzeni:"," min. 6"]
[null,null,"Pamięć:"," min. 16 GB min. 3200MHz"]
[null,null,"Napęd  optyczny: ","DVD+/-RW (możliwa jest dostawa napędu zewnetrznego USB)"]
[null,null,"Dysk: ","min. SSD 512 GB"]
[null,null,"Karta graficzna: ","zintegrowana z procesorem oraz druga dedykowana z obsługą dekodowania sprzętowego VP9 i HEVC"]
[null,null,"Karta dźwiękowa:","dowolna, wej. mikrofonowe, wyj. słuchawkowe/ głośnikowe, wej. Liniowe"]
[null,null,"Komunikacja:","min. LAN 10/100/1000 Mbps\nBluetooth\nWiFi 6 (802.11 a/b/g/n/ac/ax)"]
[null,null,"Rodzaje wejść / wyjść:","min. HDMI, RJ45, wyj. słuchawkowe, wej. mikrofonowe, wej. audio liniowe, USB, DisplayPort"]
[null,null,"Dod. funkcjonalność:","Obudowa typu SFF lub  micro ATX,  klawiatura,  mysz optyczna"]
[null,null,"Pakiet oprogramowania biurowego","Rozszerzenie posiadanej i wykorzystywanej przez zamawiającego licencji na pakiet oprogramowania biurowego  \"MS Office Professional Plus 2019 EDU dla szkół i Uczelni lub oprogramowanie równorzędne. Licencja wieczysta (dożywotnia).  \nTenant do office:  officeapsl.onmicrosoft.com\n\nWymogi równorzedności zostały opisane w \"Przypisie 2\""]
[null,null,"System: ","Preinstalowany system operacyjny ver. 1,  klasy PC musi spełniać  wymagania według poniższego załącznika  (przypis 1) poprzez wbudowane mechanizmy, bez użycia dodatkowych aplikacji (np. Windows 10 / 11  prof.. lub równoważny wg opisu )."]
[]
[{"$nulls":3},"Monitor ver. 1"]
[null,1.03,"Przekątna ekranu","w przedziale  26\" - 28\"  "]
[null,null,"Powłoka matrycy","Matowa"]
[null,null,"Rodzaj matrycy","LED,IPS"]
[null,null,"Rozdzielczość ekranu","1920 x 1080 (FullHD)"]
[null,null,"Rodzaje wejść / wyjść (min.)","Wyjście audio - 1 szt."]
[{"$nulls":3},"min. HDMI - 1 szt."]
[null,null,"Głośniki","Tak"]
[null,null,"Dodatkowe informacje","Możliwość montażu na ścianie - VESA"]
[{"$nulls":3},"kolor obudowy: czarny"]
[{"$nulls":3},"Regulacja kąta pochylenia (Tilt)"]
[null,null,"Inne","Otwory montażowe w obudowie VESA "]
[{"$nulls":3},"Komplet kabli: graficzne ( HDMI), zasilające, audio"]
[]
[{"$nulls":3},"Monitor ver. 2"]
[null,1.04,"Przekątna ekranu","w przedziale  27\" - 28\"  "]
[null,null,"Powłoka matrycy","Matowa"]
[null,null,"Rodzaj matrycy","LED, IPS"]
[null,null,"Rozdzielczość ekranu","min. 3840 x 2160 (4K)"]
[null,null,"Rodzaje wejść / wyjść (min.)","Wyjście audio - 1 szt."]
[{"$nulls":3},"min. HDMI - 1 szt."]
[{"$nulls":3},"min.DisplayPort 1.2 - 1  szt. "]
[null,null,"Głośniki","Tak"]
[null,null,"Dodatkowe informacje","Możliwość montażu na ścianie - VESA"]
[{"$nulls":3},"kolor obudowy: czarny"]
[{"$nulls":3},"Regulacja kąta pochylenia (Tilt)"]
[null,null,"Inne","Otwory montażowe w obudowie VESA "]
[{"$nulls":3},"Komplet kabli: graficzne ( HDMI, DP ), zasilające, audio"]
[]
[{"$nulls":3},"Monitor ver. 3"]
[null,1.05,"Przekątna ekranu","w przedziale  33\" - 35\""]
[null,null,"Powłoka matrycy","Matowa"]
[null,null,"Rodzaj matrycy","LED"]
[null,null,"Rozdzielczość ekranu","min. 3440 x 1440 (UWQHD)"]
[null,null,"Rodzaje wejść / wyjść (min.)","Wyjście audio - 1 szt."]
[{"$nulls":3},"min. HDMI "]
[{"$nulls":3},"min.DisplayPort"]
[null,null,"Głośniki","Tak"]
[null,null,"Dodatkowe informacje","kolor obudowy: czarny"]
[{"$nulls":3},"Regulacja kąta pochylenia (Tilt)"]
[null,null,"Inne","Otwory montażowe w obudowie VESA "]
[{"$nulls":3},"Komplet kabli: graficzne ( HDMI, DP ), zasilające, audio"]
[]
[{"$nulls":3},"Laptop ver. 1"]
[null,1.06,"typ","Komputer przenośny typu  laptop. Przeznaczony dla potrzeb pracy na programach graficznych, aplikacji biurowych, aplikacji edukacyjnych, aplikacji obliczeniowych, dostępu do Internetu oraz poczty elektronicznej, jako lokalna baza danych, stacja programistyczna.\nUrządzenie klasy biznes."]
[null,null,"Procesor"," - zgodny z architekturą x86 i x64"]
[{"$nulls":3}," - osiągający, co najmniej 13000 punktów w teście wydajnościowym PassMark CPU Benchmarks wg. kolumny Passmark CPU Mark, Zamawiający będzie weryfikował ten parametr na podstawie danych z drugiej kolumny tabeli z wynikami testów procesorów, które są załącznikiem do SWZ"]
[null,null,"Pamięć RAM","min 16 GB "]
[null,null,"ilość rdzeni","min. 6"]
[null,null,"Dysk ","min. SSD 512 GB"]
[null,null,"Typ ekranu","Matowy, LED WVA lub IPS"]
[null,null,"Przekątna ekranu","15,6\""]
[null,null,"Rozdzielczość ekranu","min. 1920 x 1080 (FullHD)"]
[null,null,"Karta graficzna","zintegrowana z procesorem i obsługą dekodowania sprzętowego VP9 i HEVC"]
[null,null,"Dźwięk","Zintegrowana karta dźwiękowa zgodna z Intel High Definition Audio"]
[{"$nulls":3},"Wbudowane dwa mikrofony"]
[{"$nulls":3},"Wbudowane głośniki stereo"]
[null,null,"Kamera internetowa","min. 1.0 Mpix"]
[null,null,"Łączność","LAN 10/100/1000 Mbps - dopuszczalna jest karta zewnętrzna (przejściówka)"]
[{"$nulls":3},"min. Wi-Fi 5"]
[{"$nulls":3},"Moduł Bluetooth (ver. min. 5.0)"]
[null,null,"Rodzaje wejść / wyjść","min. USB 3.2 Gen.1"]
[{"$nulls":3},"min. USB Typu-C"]
[{"$nulls":3},"min. HDMI"]
[{"$nulls":3},"min. USB 2.0 "]
[{"$nulls":3},"Wyjście słuchawkowe/wejście mikrofonowe "]
[null,null,"dodatkowe wypos./funkc.","Torba, mysz bezprzewodowa (mała), "]
[{"$nulls":3},"Kolor czarny lub szary"]
[{"$nulls":3},"System zabezpieczenia przed kradzieżą"]
[{"$nulls":3},"Wydzielona klawiatura numeryczna"]
[null,null,"Pakiet oprogramowania biurowego","Rozszerzenie posiadanej i wykorzystywanej przez zamawiającego licencji na pakiet oprogramowania biurowego  \"MS Office Professional Plus 2019 EDU dla szkół i Uczelni lub oprogramowanie równorzędne. Licencja wieczysta (dożywotnia).  \nTenant do office:  officeapsl.onmicrosoft.com\n\nWymogi równorzedności zostały opisane w \"Przypisie 2\""]
[null,null,"zainstalowany system operacyjny","Preinstalowany system operacyjny ver. 1,  klasy PC musi spełniać  wymagania według poniższego załącznika  (przypis 1) poprzez wbudowane mechanizmy, bez użycia dodatkowych aplikacji (np. Windows 10 / 11  lub równoważny wg opisu )."]
[]
[{"$nulls":3},"Laptop ver. 2"]
[null,1.07,"typ","Komputer przenośny typu  laptop. Przeznaczony dla edycji grafiki"]
[null,null,"Procesor"," - zgodny z architekturą x86 i x64"]
[{"$nulls":3}," - osiągający, co najmniej 17000 punktów w teście wydajnościowym PassMark CPU Benchmarks "]
[null,null,"Pamięć RAM","min. 16 GB "]
[null,null,"Dysk twardy","min. SSD 512 GB"]
[null,null,"Ilość rdzeni",6]
[null,null,"Typ ekranu","Matowy, LED WVA lub IPS"]
[null,null,"Przekątna ekranu","min. 15,6"]
[null,null,"Rozdzielczość ekranu","min. 1920 x 1080 (FHD)"]
[null,null,"Karta graficzna","zintegrowana z procesorem oraz druga dedykowana z obsługą dekodowania sprzętowego VP9 i HEVC"]
[null,null,"Dźwięk","Zintegrowana karta dźwiękowa"]
[{"$nulls":3},"Wbudowany mikrofon"]
[{"$nulls":3},"Wbudowane głośniki stereo"]
[null,null,"Kamera internetowa","min. 1.0 Mpix"]
[null,null,"Łączność","min. Wi-Fi 6"]
[{"$nulls":3},"LAN 10/100 Mbps"]
[{"$nulls":3},"Moduł Bluetooth"]
[null,null,"Rodzaje wejść / wyjść","HDMI"]
[{"$nulls":3},"Wyjście słuchawkowe/wejście mikrofonowe "]
[{"$nulls":3},"min. USB 2.0 - 1 szt."]
[{"$nulls":3},"Czytnik kart pamięci"]
[{"$nulls":3},"min. USB 3.2 Gen. 1 "]
[null,null,"Dodatkowe informacje","Wielodotykowy, intuicyjny touchpad"]
[{"$nulls":3},"Torba, mysz bezprzewodowa (mała)"]
[null,null,"Pakiet oprogramowania biurowego","Rozszerzenie posiadanej i wykorzystywanej przez zamawiającego licencji na pakiet oprogramowania biurowego  \"MS Office Professional Plus 2019 EDU dla szkół i Uczelni lub oprogramowanie równorzędne. Licencja wieczysta (dożywotnia).  \nTenant do office:  officeapsl.onmicrosoft.com\n\nWymogi równorzedności zostały opisane w \"Przypisie 2\""]
[null,null,"zainstalowany system operacyjny","Preinstalowany system operacyjny ver. 1,  klasy PC musi spełniać  wymagania według poniższego załącznika  (przypis 1) poprzez wbudowane mechanizmy, bez użycia dodatkowych aplikacji (np. Windows 10 / 11  lub równoważny wg opisu )."]
[]
[{"$nulls":3},"Laptop ver. 3"]
[null,1.08,"typ","Komputer przenośny typu  laptop. Przeznaczony dla potrzeb pracy na programach graficznych, aplikacji biurowych, aplikacji edukacyjnych, aplikacji obliczeniowych, dostępu do Internetu oraz poczty elektronicznej."]
[null,null,"Procesor"," - zgodny z architekturą x86 i x64"]
[{"$nulls":3}," - osiągający, co najmniej 15000 punktów w teście wydajnościowym PassMark CPU Benchmarks wg. kolumny Passmark CPU Mark, Zamawiający będzie weryfikował ten parametr na podstawie danych z drugiej kolumny tabeli z wynikami testów procesorów, które są załącznikiem do SWZ"]
[null,null,"Pamięć RAM","min 16 GB "]
[null,null,"ilość rdzeni","min. 6"]
[null,null,"Dysk ","min. SSD 512 GB"]
[null,null,"Typ ekranu","Matowy lub Antyrefleksyjny, LED"]
[null,null,"Przekątna ekranu","14\""]
[null,null,"Rozdzielczość ekranu","min. 1920 x 1080 (FullHD)"]
[null,null,"Karta graficzna","Dowolna"]
[null,null,"Dźwięk","Zintegrowana karta dźwiękowa"]
[{"$nulls":3},"Wbudowane dwa mikrofony"]
[{"$nulls":3},"Wbudowane głośniki stereo"]
[null,null,"Kamera internetowa","min. 1.0 Mpix"]
[null,null,"Łączność","Wi-Fi "]
[{"$nulls":3},"Moduł Bluetooth (ver. min. 5.0)"]
[null,null,"Rodzaje wejść / wyjść","min. USB 3. Gen. 1"]
[{"$nulls":3},"min. USB Typu-C (z DisplayPort i Power Delivery) "]
[{"$nulls":3},"min. HDMI "]
[{"$nulls":3},"Wyjście słuchawkowe/wejście mikrofonowe "]
[null,null,"dodatkowe wypos./funkc.","Torba, mysz bezprzewodowa (mała, zasilana akumulatorowo i ładowana przez USB), przejściówka HDMI -> VGA"]
[{"$nulls":3},"Podświetlenie klawiatury kolorem białym"]
[{"$nulls":3},"System zabezpieczenia przed kradzieżą"]
[{"$nulls":3},"Wydzielona klawiatura numeryczna"]
[null,null,"Pakiet oprogramowania biurowego","Rozszerzenie posiadanej i wykorzystywanej przez zamawiającego licencji na pakiet oprogramowania biurowego  \"MS Office Professional Plus 2019 EDU dla szkół i Uczelni lub oprogramowanie równorzędne. Licencja wieczysta (dożywotnia).  \nTenant do office:  officeapsl.onmicrosoft.com\n\nWymogi równorzedności zostały opisane w \"Przypisie 2\""]
[null,null,"zainstalowany system operacyjny","Preinstalowany system operacyjny ver. 1,  klasy PC musi spełniać  wymagania według poniższego załącznika  (przypis 1) poprzez wbudowane mechanizmy, bez użycia dodatkowych aplikacji (np. Windows 10 / 11  lub równoważny wg opisu )."]
[]
[{"$nulls":3},"Laptop ver. 4"]
[null,1.09,"typ","Komputer przenośny typu  laptop. Przeznaczony dla edycji grafiki"]
[null,null,"Procesor"," - zgodny z architekturą x86 i x64"]
[{"$nulls":3}," - osiągający, co najmniej 17000 punktów w teście wydajnościowym PassMark CPU Benchmarks "]
[null,null,"Pamięć RAM","min. 16 GB "]
[null,null,"Dysk twardy","min. SSD 1 TB"]
[null,null,"Ilość rdzeni","min. 10"]
[null,null,"Typ ekranu","Matowy, LED, WVA"]
[null,null,"Przekątna ekranu","min. 16"]
[null,null,"Rozdzielczość ekranu","1920 x 1200 (WUXGA)"]
[null,null,"Karta graficzna","zintegrowana z procesorem oraz druga dedykowana z obsługą dekodowania sprzętowego VP9 i HEVC"]
[null,null,"Dźwięk","Zintegrowana karta dźwiękowa"]
[{"$nulls":3},"Wbudowany mikrofon"]
[{"$nulls":3},"Wbudowane głośniki stereo"]
[null,null,"Kamera internetowa","min. 2.0 Mpix"]
[null,null,"Łączność","min. Wi-Fi 6"]
[{"$nulls":3},"Moduł Bluetooth"]
[null,null,"Rodzaje wejść / wyjść","HDMI"]
[{"$nulls":3},"USB Typu-C (z DisplayPort i Power Delivery)"]
[{"$nulls":3},"Wyjście słuchawkowe/wejście mikrofonowe"]
[{"$nulls":3},"Czytnik kart pamięci"]
[{"$nulls":3},"min. USB 3.2 Gen. 1 "]
[null,null,"Dodatkowe informacje","Wielodotykowy, intuicyjny touchpad"]
[{"$nulls":3},"Torba, mysz bezprzewodowa (mała)"]
[null,null,"Pakiet oprogramowania biurowego","Rozszerzenie posiadanej i wykorzystywanej przez zamawiającego licencji na pakiet oprogramowania biurowego  \"MS Office Professional Plus 2019 EDU dla szkół i Uczelni lub oprogramowanie równorzędne. Licencja wieczysta (dożywotnia).  \nTenant do office:  officeapsl.onmicrosoft.com\n\nWymogi równorzedności zostały opisane w \"Przypisie 2\""]
[null,null,"zainstalowany system operacyjny","Preinstalowany system operacyjny ver. 1,  klasy PC musi spełniać  wymagania według poniższego załącznika  (przypis 1) poprzez wbudowane mechanizmy, bez użycia dodatkowych aplikacji (np. Windows 10 / 11  lub równoważny wg opisu )."]
[]
[{"$nulls":3},"Tablet ver. 1"]
[null,"1.10","typ","Tablet lub notebook z funkcją tabletu"]
[null,null,"Ilość rdzeni","min 4"]
[null,null,"Pamięć RAM","min. 8 GB"]
[null,null,"Dysk SSD M.2 PCIe","min. 128 GB"]
[null,null,"Typ ekranu","dotykowy"]
[null,null,"Przekątna ekranu","min 12,3"]
[null,null,"Rozdzielczość ekranu","2736 x 1824"]
[null,null,"Łączność","min. Wi-Fi 6"]
[{"$nulls":3},"Moduł Bluetooth"]
[null,null,"Złącza","min. USB Type-C - 1 szt."]
[{"$nulls":3},"Czytnik kart pamięci microSD - 1 szt."]
[null,null,"Aparat","min. 5.0  Mpix "]
[null,null,"Pakiet oprogramowania biurowego","Rozszerzenie posiadanej i wykorzystywanej przez zamawiającego licencji na pakiet oprogramowania biurowego  \"MS Office Professional Plus 2019 EDU dla szkół i Uczelni lub oprogramowanie równorzędne. Licencja wieczysta (dożywotnia).  \nTenant do office:  officeapsl.onmicrosoft.com\n\nWymogi równorzedności zostały opisane w \"Przypisie 2\""]
[null,null,"System operacyjny","Preinstalowany system operacyjny ver. 1,  klasy PC musi spełniać  wymagania według poniższego załącznika  (przypis 1) poprzez wbudowane mechanizmy, bez użycia dodatkowych aplikacji (np. Windows 10 / 11  lub równoważny wg opisu )."]
[null,null,"Dodatkowe informacje","Wbudowane głośniki stereo"]
[{"$nulls":3},"Wbudowany mikrofon"]
[null,null,"Dołączone akcesoria","Zasilacz, klawiatura (jeżeli jest odłączalna), myszka bluetoothz zasilaniem akumulatorowym (ładowana przez USB)"]
[{"$nulls":3},"Torba , Przejściówka USB-C do HDMI"]
[{"$nulls":3},"Kabel USB Type-C, kabel HDMI"]
[]
[{"$nulls":3},"Tablet ver. 2"]
[null,"1.11","typ","Tablet "]
[null,null,"Ilość rdzeni","min 8"]
[null,null,"Pamięć RAM","min. 8 GB"]
[null,null,"Pamięć wbudowana","min. 128 GB"]
[null,null,"Typ ekranu","Pojemnościowy, 10-punktowy, IPS, Liquid Retina"]
[null,null,"Przekątna ekranu","11\""]
[null,null,"Rozdzielczość ekranu","2388x1668"]
[null,null,"Łączność","min. Wi-Fi 6"]
[{"$nulls":3},"Moduł Bluetooth"]
[null,null,"Złącza","Złącze stacjik dokującej - 1 szt."]
[{"$nulls":3},"Thunderbolt4 - 1 szt."]
[null,null,"Aparat","min. 12.0  Mpix - przód"]
[{"$nulls":3},"min. 12.0 Mpix - tył"]
[null,null,"System operacyjny","zainstalowany iPadOS16"]
[null,null,"Dodatkowe informacje","Wbudowane cztery głośniki stereo"]
[{"$nulls":3},"Etui"]
[{"$nulls":3},"FaceID"]
[{"$nulls":3},"Wbudowany mikrofon"]
[null,null,"Dołączone akcesoria","Zasilacz"]
[{"$nulls":3},"Kabel USB Type-C"]
[]
[{"$nulls":3},"Ekran ścienny 4:3 ręcznie rozwijany"]
[null,1.12,"powierzchnia projekcyjna","Matt - White (biały) z czarną ramką"]
[null,null,"format"," 4:3"]
[null,null,"wysokość ekranu","200 cm"]
[null,null,"szerokość powierzchni projekcyjnej","200 cm"]
[null,null,"wysokość powierzchni projekcyjnej","150 cm "]
[null,null,"sposób montażu","ściana / sufit"]
[null,null,"współczynnik odbicua światłą","min. 1.2"]
[null,null,"typ projekcji","przednia"]
[null,null,"informacje dodatkowe","Montaż ekrfanu u zamawiającego w cenie, rozwijanie ręczne, dolna belka zapobieająca fałdowaniu"]
[]
[{"$nulls":3},"Urządzenie wielofunkcyjne atramentowe"]
[null,"1.13","Technologia druku","Atramentowa, kolorowa"]
[null,null,"Obsługiwany typ nośnika","Papier zwykły"]
[{"$nulls":3},"Papier fotograficzny"]
[null,null,"Obsługiwane formaty nośników","A4"]
[{"$nulls":3},"A5"]
[{"$nulls":3},"A6"]
[{"$nulls":3},"DL"]
[null,null,"Podajnik papieru","min 150 arkuszy"]
[null,null,"Liczba wkładów drukujących",4]
[null,null,"System stałego zasilania atramentem (CISS)","Tak"]
[null,null,"Skaner","Tak"]
[null,null,"Maksymalna rozdzielczość skanowania","2400 x 1200 dpi"]
[null,null,"Maksymalny format skanu","A4"]
[null,null,"Wyświetlacz","Wbudowany"]
[null,null,"Interfejsy","USB"]
[{"$nulls":3},"Wi-Fi"]
[{"$nulls":3},"AirPrint"]
[null,null,"Wersja z WiFi","Tak"]
[null,null,"Dodatkowe informacje","Drukowanie bezpośrednio ze smartfonów i tabletów"]
[{"$nulls":3},"Drukowanie znaków wodnych"]
[null,null,"Dołączone akcesoria","Kabel zasilający"]
[{"$nulls":3},"Zestaw pełnych tuszów"]
[null,null,"Kolor","Czarny"]
[]
[{"$nulls":3},"Edytor grafiki wektorowej"]
[null,"1.14","Klasa produktu","programy i pakiety graficzne"]
[null,null,"Przykład","CorelDRAW Graphics Suite 2021 lub równoważny w zakresie wymogów równoważności"]
[null,null,"Wersja produktu","pudełkowa (BOX) dla Windows"]
[null,null,"Rodzaj licencji","nowa licencja"]
[null,null,"Okres licencji","wieczysta"]
[null,null,"Wymogi równoważności "]
[null,null,"●  umożliwia tworzenie grafiki wektorowej i skład stron"]
[null,null,"●  posiada wszechstronne narzędzia do rysowania i trasowania"]
[null,null,"●  posiada w pełni konfigurowany interfejs"]
[null,null,"●  posiada intuicyjną aplikację do tworzenia ilustracji wektorowych i przygotowywania układu stron spełniającą wymagania \n    zarówno zapracowanych grafików zawodowych, jak i amatorów"]
[null,null,"●  posiada profesjonalną aplikację do edycji zdjęć umożliwiające ich szybkie i łatwe retuszowanie oraz modyfikowanie"]
[null,null,"●  posiada narzędzie pozwalające szybko i dokładnie przekształcać mapy bitowe w edytowalne grafiki wektorowe"]
[null,null,"●  posiada pełnoekranową przeglądarka zapewniającą dostęp do zasobów cyfrowych, nowego Centrum zasobów oraz opcji \n    przeszukiwania komputera lub sieci lokalnej, co pozwala szybko znaleźć odpowiednie materiały do projektu"]
[null,null,"●  posiada aplikację ułatwiająca sprawne projektowanie i opracowywanie witryn internetowych oraz zarządzanie nimi"]
[null,null,"●  posiada narządzie umożliwiające przechwytywanie obrazów z ekranu komputera jednym kliknięciem"]
[null,null,"●  posiada dodatek umożliwiający powiększanie zdjęć cyfrowych"]
[null,null,"●  umożliwia przystępną i intuicyjną edycję i obróbkę, a także udostępnianie w Internecie cyfrowych fotografii"]
[null,null,"●  umożliwia pełną obsługę formatów RAW, w tym także najnowszych Camera RAW, a także funkcje umożliwiające pracę \n    z materiałami wideo HD, tworzenie zintegrowanych projektów - np. książek fotograficznych, pokazów slajdów fotografii HD, kart itp."]
[null,null,"●  program posiada samouczki wideo i centrum wsparcia"]
[null,null,"●  platforma systemowa: windows"]
[]
[{"$nulls":3},"Zewnętrzny dysk SSD"]
[null,"1.15","Rodzaj dysku","zewnętrzny SSD "]
[null,null,"Pojemność","min 960 GB "]
[null,null,"Interfejs","USB 3.2"]
[null,null,"Złącze","USB Type-C"]
[null,null,"Prędkość odczytu i zapisu ","min. 900 MB/s"]
[null,null,"Dołączone akcesoria / informacje","Kabel USB-C, Etui, Kabel USB-C -> USB-A"]
[]
[{"$nulls":3},"Kamera internetowa USB z mikrofonem "]
[null,"1.16","Przeznaczenie","do nauki, dla biznesu"]
[null,null,"Funkcja aparatu cyfrowego","tak"]
[null,null,"Funkcja kamery internetowej","tak"]
[null,null,"Maks. rozdzielczość","min. 1920 x 1080 (FullHD | 30 FPS)"]
[null,null,"Interfejs","USB"]
[null,null,"Długość kabla","min. 1.5 m"]
[null,null,"Mikrofon","tak"]
[null,null,"Zasilanie","z urządzenia"]
[null,null,"Kolor","czarny"]
[]
[{"$nulls":3},"Urządzenie wielofunkcyjne laserowe"]
[null,"1.17","Technologia druku","Laserowa, monochromatyczna"]
[null,null,"funkcje","drukarka, skaner, kopiowanie"]
[null,null,"Min. obsługiwany \ntyp nośnika","Koperty, papier fotograficzny"]
[{"$nulls":3},"Papier zwykły"]
[null,null,"Obsługiwany format nośnika","Letter"]
[{"$nulls":3},"A6"]
[{"$nulls":3},"A5"]
[{"$nulls":3},"A4"]
[null,null,"Podajnik papieru","250 arkuszy"]
[null,null,"Podajnik dokumentów skanera","Tak (ADF)"]
[null,null,"Szybkość druku w mono","min.25 str./min"]
[null,null,"Maksymalny format skanu","A4"]
[null,null,"Druk dwustronny (dupleks)","Automatyczny"]
[null,null,"Interfejsy","USB"]
[{"$nulls":3},"Wi-Fi"]
[{"$nulls":3},"LAN (Ethernet)"]
[null,null,"Wyświetlacz","Wbudowany"]
[null,null,"Dodatkowe informacje","Kabel zasilający, przewód USB ,przewód  ETH, Toner (normalny)"]
[]
[{"$nulls":3},"Głosniki Bluetooth"]
[null,"1.18","Rodzaj zestawu","2.0"]
[null,null,"Rodzaje wyjść / wejść","DC-in (wejście zasilania) - 1 szt."]
[{"$nulls":3},"Wejście liniowe Audio - 1 szt."]
[null,null,"Łączność bezprzewodowa","Bluetooth"]
[null,null,"Waga","poniżj 2,4 kg"]
[null,null,"Kolor","Czarny"]
[]
[{"$nulls":3},"Switch rack"]
[null,"1.19","Typ","zarządzalny (np. TL-SG3428)"]
[null,null,"Przeznaczenie","do szaf RACK 19\""]
[null,null,"Liczba portów 1 Gbit","24 szt."]
[null,null,"Sloty SFP","4 szt. "]
[null,null,"Rozmiar tablicy adresów MAC","min. 8k"]
[null,null,"Prędkość magistrali wew.","min. 48 Gb/s"]
[null,null,"Szybkość przekierowań pakietów","min. 35.7 mpps"]
[null,null,"Obsługa VLANów","tak"]
[null,null,"Zarządzalność","tak"]
[]
[{"$nulls":3},"Klawiatura i myszka bezprzewodowa"]
[null,"1.20","Rodzaj przełączników","Membranowe - nożycowe"]
[null,null,"Typ","Multimedialna"]
[{"$nulls":3},"Niskoprofilowa"]
[null,null,"Łączność","Bezprzewodowa"]
[null,null,"Interfejs","2,4 GHz"]
[{"$nulls":3},"Bluetooth"]
[null,null,"Klawisze numeryczne","Tak"]
[null,null,"Klawisze multimedialne / funkcyjne","Tak"]
[null,null,"Mysz w zestawie","Tak"]
[null,null,"Sensor myszy","Optyczny"]
[null,null,"Rozdzielczość myszy","1600 DPI"]
[null,null,"Dodatkowe informacje","Wbudowana bateria"]
[{"$nulls":3},"Kabel do ładowania USB -> microUSB"]
[]
[]
[{"$nulls":3},"Urządzenie testujące sieć LAN"]
[null,"1.21","Urządzenie testujące sieć LAN  ( np. Forscher FS8114)"]
[null,null,"testowane typy przewodów:","RJ45 Lan Cat 5, 5e, 6 (UTP/STP), RJ11/12 tel. BNC"]
[null,null,"sposób pomiaru:"," metoda pojemnościowa"]
[null,null,"funkcje","pomiar długości"]
[{"$nulls":3},"test integralności par"]
[{"$nulls":3},"dokładność pomiaru ±3.0% (±0.5m)"]
[{"$nulls":3},"częstotliwość sygnału nadajnika 130 KHz"]
[{"$nulls":3},"przewodów koncentrycznych , internetowych , telefonicznych"]
[{"$nulls":3},"wyszukiwanie i testowanie kabli w trybie POE"]
[{"$nulls":3},"auto wyłączanie przy bezczynności - czas wyłączenia ustawiany przez użytkownika"]
[null,null,"Wyposażenie","Tester sieci, sonda indukcyjna , komplet okablowania , adaptor do zdalnego badania połączeń przewodu , etui z mocowaniem do paska , instrukcję w języku polskim , 2szt. baterie 9V (zainstalowane)."]
[]
[{"$nulls":3},"Słuchawki nauszne z mikrofonem"]
[null,1.22,"Łączność","Przewodowe"]
[{"$nulls":3},"Bezprzewodowe"]
[null,null,"Rodzaj łączności","Bluetooth 5.0"]
[null,null,"Budowa słuchawek","Nauszne"]
[{"$nulls":3},"Zamknięte"]
[null,null,"Składana konstrukcja","Tak"]
[null,null,"System audio","Stereo 2.0"]
[null,null,"Redukcja hałasu","Aktywna "]
[null,null,"Średnica membrany","40 mm"]
[null,null,"Pasmo przenoszenia słuchawek","20 ~ 20000 Hz"]
[null,null,"Impedancja słuchawek","32 Om"]
[null,null,"Regulacja głośności","Tak"]
[null,null,"Wbudowany mikrofon","Przy słuchawce"]
[null,null,"Złącze","Minijack 3,5 mm - 1 szt."]
[{"$nulls":3},"USB typu-C - 1 szt."]
[null,null,"Zasilanie","Wbudowany akumulator min. 600 mAh"]
[null,null,"Odłączany kabel","Tak"]
[null,null,"Zastosowane technologie","Pure Bass"]
[{"$nulls":3},"A2DP"]
[{"$nulls":3},"HFP"]
[{"$nulls":3},"AVRCP"]
[null,null,"Dodatkowe informacje","Regulowany pałąk"]
[{"$nulls":3},"Nauszniki składane na płasko"]
[{"$nulls":3},"Odbieranie połączeń"]
[{"$nulls":3},"Kończenie połączeń"]
[{"$nulls":3},"Sterowanie muzyką"]
[{"$nulls":3},"Możliwość podłączenia dwóch urządzeń jednocześnie"]
[{"$nulls":3},"Współpraca z asystentem głosowym"]
[null,null,"Dołączone akcesoria","Kabel audio z wtykiem 3,5 mm"]
[{"$nulls":3},"Kabel USB typu C"]
[null,null,"Kolor","czarny lub niebieski"]
[]
[{"$nulls":3},"Dysk SSD 1TB"]
[null,1.23,"Pojemność","1000 GB"]
[null,null,"Format","2.5\""]
[null,null,"Interfejs","2,5\" SATA"]
[null,null,"Prędkość odczytu (maksymalna)","min. 550 MB/s"]
[null,null,"Prędkość zapisu (maksymalna)","min. 510 MB/s"]
[null,null,"Odczyt losowy","min.  90,000 IOPS"]
[null,null,"Zapis losowy","min. 80,000 IOPS"]
[null,null,"Rodzaj kości pamięci","TLC"]
[null,null,"Niezawodność MTBF","min.  1 500 000 godz"]
[]
[{"$nulls":3},"Dysk SSD 512 GB SATA"]
[null,1.24,"Pojemność","512 GB"]
[null,null,"Format","2.5\""]
[null,null,"Interfejs","2,5\" SATA"]
[null,null,"Prędkość odczytu (maksymalna)","min. 550 MB/s"]
[null,null,"Prędkość zapisu (maksymalna)","min. 510 MB/s"]
[null,null,"Odczyt losowy","min.  65,000 IOPS"]
[null,null,"Zapis losowy","min. 95,000 IOPS"]
[null,null,"Rodzaj kości pamięci","TLC"]
[null,null,"Niezawodność MTBF","min.  1 500 000 godz"]
[null,null,"dodatek","Przewód sygnałowy SATA 7-pin męskie z dwóch stron 30 cm"]
[]
[{"$nulls":3},"Zasilacz ATX"]
[null,1.25,"Moc maksymalna","min 750 W"]
[null,null,"Standard","ATX"]
[null,null,"Złącza (ilość minimalna)","CPU 4+4 (8) pin - 1 szt."]
[{"$nulls":3},"min. PCI-E 2.0 6+2 (8) pin - 2 szt."]
[{"$nulls":3},"min. MOLEX 4-pin - 3 szt."]
[{"$nulls":3},"min. SATA - 6 szt."]
[{"$nulls":3},"min. EPS12V 20+4 (24) pin - 1 szt."]
[null,null,"Certyfikat","80 PLUS Bronze"]
[null,null,"Zabezpieczenia","Przeciwprzeciążeniowe "]
[{"$nulls":3},"Przeciwprzepięciowe "]
[{"$nulls":3},"Przeciwzwarciowe "]
[{"$nulls":3},"Przed prądami udarowymi "]
[{"$nulls":3},"Przed zbyt niskim napięciem"]
[null,null,"Średnica wentylatora","min. 120 mm"]
[]
[{"$nulls":3},"Pamięć DDR4 SODIMM "]
[null,1.26,"Rodzaj pamięci","DDR4 SODIMM"]
[null,null,"Pojemność całkowita","32 GB (2x16 GB)"]
[null,null,"Pojemność kości","16 GB"]
[null,null,"Liczba modułów",2]
[null,null,"Taktowanie","2666 MHz"]
[null,null,"Napięcie","1,2 V"]
[null,null,"Uwagi","pamięć dedykowana do laptopa Dell "]
[]
[{"$nulls":3},"Projektor ver. 1"]
[null,1.27,"Technologia wyświetlania","3LCD"]
[null,null,"Rozdzielczość natywna","1920 x 1080 (FHD)"]
[null,null,"Rozdzielczość maksymalna","1920 x 1080 (FHD)"]
[null,null,"Format obrazu",0.6729166666666666]
[null,null,"Jasność","min. 3400 lm"]
[null,null,"Kontrast","16 000:1"]
[null,null,"Wielkość rzutowanego obrazu","30\" - 300\""]
[null,null,"Moc lampy","min.  210 W"]
[null,null,"Złącza","Wejście audio - 1 szt."]
[{"$nulls":3},"Wejście audio L/R (RCA) - 2 szt."]
[{"$nulls":3},"HDMI - 2 szt."]
[{"$nulls":3},"VGA in (D-sub) - 1 szt."]
[{"$nulls":3},"USB 2.0 - 1 szt."]
[{"$nulls":3},"USB typ B - 1 szt."]
[null,null,"Łączność bezprzewodowa","Tak"]
[null,null,"Głośniki","Tak"]
[null,null,"Dodatkowe informacje","Możliwość regulacja zniekształcenia trapezowego‎ (Keystone)"]
[{"$nulls":3},"Możliwość zabezpieczenia linką (Kensington Lock)"]
[null,null,"Dołączone akcesoria","Torba na projektor i akcesoria"]
[{"$nulls":3},"Pilot z bateriami"]
[{"$nulls":3},"Kabel zasilający"]
[{"$nulls":3},"Przewód HDMI"]
[]
[{"$nulls":3},"Dysk SSD 512 GB M.2"]
[null,1.28,"Pojemność","512 GB"]
[null,null,"Format","M.2"]
[null,null,"Interfejs","M.2 PCIe NVMe 4.0 x4"]
[null,null,"Prędkość odczytu (maksymalna)","min. 3000 MB/s"]
[null,null,"Prędkość zapisu (maksymalna)","min. 2400 MB/s"]
[null,null,"Odczyt losowy","min.  300,000 IOPS"]
[null,null,"Zapis losowy","min. 300,000 IOPS"]
[null,null,"Rodzaj kości pamięci","TLC"]
[null,null,"Niezawodność MTBF","min.  1 500 000 godz"]
[]
[{"$nulls":3},"Uchwyt sufitowy"]
[null,1.29,"Typ:","sufitowy"]
[null,null,"    Maksymalna waga projektora","min. 15kg"]
[null,null,"    Regulacja w poziomie (obrót):","min. 45 stopni"]
[null,null,"Regulacja kąta nachylemia"," - Regulacji pochylenia w osi uchwytu min. +/- 15°\n - Regulacji pochylenia na boki min.  +/- 20°"]
[null,null,"Dodatkowe inf.","Możliwość ukrycia przewodów w uchwycie "]
[null,null,"Kolor","Biały"]
[null,null,"Wysokość","min. 22,5 "]
[]
[{"$nulls":3},"Projektor multimedialny ver. 2 krótkoogniskowy"]
[null,"1.30","Technologia wyświetlania","DLP"]
[null,null,"Rozdzielczość natywna","1024 x 768 (XGA)"]
[null,null,"Rozdzielczość maksymalna","WUXGA"]
[null,null,"Parametry wymagane","77-calowy obraz przy instalacji projektora w odległości mniej niż 1 metr od ekranu"]
[{"$nulls":3},"jasność 3300 ANSI lumenów i kontrast 15 000:1"]
[{"$nulls":3},"Rozdzielczość: natywna XGA, maksymalna obsługiwana: WUXGA"]
[{"$nulls":3},"Wyjścia Monitor Out: D-sub 15 pin x 1; Wyjście Audio: Stereo Mini Jack x 1; Głośnik 2W x 1; DC 12V trigger"]
[{"$nulls":3},"Wejścia:  Analog RGB: D-sub 15 pin x 2; LAN networking: RJ-45 x 1; USB type A x 1; USB type mini-B x 1; HDMI v1.3 x 1; S-Video: Mini Din 4 pin x 1; Composite Video: RCA x 1; Microphone: Stereo Mini Jack x 1; Audio L/R: RCA x 2; Stereo Mini Jack x 1"]
[{"$nulls":3},"Wbudowane głośniki o mocy min 10 W"]
[{"$nulls":3},"Jednakowo wysokie natężenie światła białego i barwnego"]
[{"$nulls":3},"żywotność lampy 10 000 godzin (tryb ekonomiczny)/5000 godzin (tryb standardowy)"]
[{"$nulls":3},"poziomej i pionowej korekty geometrii obrazu pozwala na używanie projektora w ustawieniu bocznym i na nierównym podłożu"]
[{"$nulls":3},"Gwarancja producenta 36 miesięcy "]
[{"$nulls":3},"Zabezpieczenia antykradzieżowe: gniazdo blokady Kensington®, zaczep linki antykradzieżowej,"]
[]
[{"$nulls":3},"Zasilacz UPS"]
[null,1.31,"Typ obudowy"," Tower"]
[null,null,"Topologia"," Line-interactive"]
[null,null,"Moc pozorna"," min. 700 VA"]
[null,null,"Moc skuteczna"," min. 500 W"]
[null,null,"Typ gniazda wejściowego"," IEC 320 C14"]
[null,null,"Napięcie wyjściowe"," 230 V"]
[null,null,"Kształt napięcia wyjściowego"," Sinusoidalny"]
[null,null,"Gniazda wyjściowe"," IEC 320 C13"]
[null,null,"Liczba gniazd wyjściowych"," min. 6"]
[null,null,"Interfejs komunikacyjny"," USB i RJ-45"]
[null,null,"Funkcjonalności","-Zimny start"]
[{"$nulls":3},"-Automatyczna regulacja napięcia (AVR)"]
[{"$nulls":3},"-Wyłącznik obwodu z możliwością resetu"]
[{"$nulls":3},"-Powiadomienie o rozłączeniu akumulatora"]
[{"$nulls":3},"-Alarmy dźwiękowe"]
[{"$nulls":3},"-Automatyczny test"]
[{"$nulls":3},"-Wbudowany wyświetlacz LCD"]
[{"$nulls":3},"-Możliwość podłączenia zewnętrznych modułów bateryjnych"]
[null,null,"Zabezpieczenia:","-Przeciwzwarciowe"]
[{"$nulls":3},"-Przeciążeniowe"]
[{"$nulls":3},"-Przeciwprzepięciowe"]
[{"$nulls":3},"-Termiczne"]
[{"$nulls":3},"-Zabezpieczenie przed przeładowaniem"]
[]
[{"$nulls":3},"Pamięć RAM DDR4"]
[null,1.32,"Przeznaczenie"," do komputerów PC"]
[null,null,"Typ pamięci"," DDR4-2400 "]
[null,null,"Częstotliwość"," 1200MHz"]
[null,null,"Pojemność"," 8GB"]
[null,null,"Napięcie"," 1,2Volt"]
[null,null,"Opóźnienie CAS"," 17-21"]
[]
[{"$nulls":3},"Przenośny dysk HDD 2,5\""]
[null,1.33,"Pojemność","2000 GB          "]
[null,null,"Złącze","USB 3.0/USB 3.1 gen1   "]
[null,null,"Typ","USB typ C "]
[null,null,"Kompatybilność","WIN i Mac  OS "]
[null,null,"Gwarancja","producenta 36 miesięcy"]
[]
[{"$nulls":3},"Ekran ścienny 16:9 ręcznie rozwijany"]
[null,1.34,"powierzchnia projekcyjna","Matt - White (biały) z czarną ramką"]
[null,null,"format","16:9"]
[null,null,"wysokość ekranu","min.200 cm"]
[null,null,"szerokość powierzchni projekcyjnej","240 cm"]
[null,null,"wysokość powierzchni projekcyjnej","200 cm"]
[null,null,"sposób montażu","ściana / sufit"]
[null,null,"współczynnik odbicua światłą","min. 1.2"]
[null,null,"typ projekcji","przednia"]
[null,null,"informacje dodatkowe","Montaż ekrfanu u zamawiającego w cenie, rozwijanie ręczne, dolna belka zapobieająca fałdowaniu"]
[]
[{"$nulls":3},"Ekran ścienny 16:9, elektryczny"]
[null,1.35,"Format","16:9"]
[null,null,"szerokość powierzchni projekcyjnej",200]
[null,null,"wysokość powierzchni projekcyjnej",113]
[null,null,"Ramka"," czarna lewo/prawo/dół"]
[null,null,"Współczynnik odbicia światła"," minimum 1,2"]
[null,null,"Tył"," Czarny, nieprzeźroczysty tył"]
[null,null,"Zasilanie"," Moc 40 W; napięcie 230 V; częstotliwość 50 Hz;        "]
[null,null,"Przeznaczenie"," Do montażu na ścianach i sufitach "]
[null,null,"Dodatkowe inf."," Przełącznik ścienny oraz pilot zdalnego sterowania na podczerwień "]
[null,null,"informacje dodatkowe","Montaż ekrfanu u zamawiającego w cenie"]
[]
[{"$nulls":3},"Słuchawki przewodowe nauszne z mikrofonem"]
[null,1.36,"Łączność","Przewodowe"]
[null,null,"Budowa słuchawek","Nauszne"]
[{"$nulls":3},"Zamknięte"]
[null,null,"System audio","Stereo 2.0"]
[null,null,"Średnica membrany","50 mm"]
[null,null,"Pasmo przenoszenia słuchawek","20 ~ 20000 Hz"]
[null,null,"Impedancja słuchawek","32 Om"]
[null,null,"Regulacja głośności","Tak"]
[null,null,"Wbudowany mikrofon","Przy słuchawce"]
[null,null,"Pasmo przenoszenia mikrofonu","30 ~ 16000 Hz"]
[null,null,"Połączenie ","Przewodowo – jack 3,5mm"]
[null,null,"Materiał nauszników","Skóra ekologiczna"]
[null,null,"Dodatkowe informacje","Regulowany pałąk"]
[{"$nulls":3},"Miękko wyściełany pałąk"]
[{"$nulls":3},"Elastyczne ramię mikrofonu"]
[{"$nulls":3},"Kabel w oplocie"]
[null,null,"Kolor","Czarno-czerwony"]
[null,null,"Dołączone akcesoria","Adapter z 3,5 mm na 2x 3,5 mm"]
[null,null,"Waga","od 250 g do 360 g."]
[null,null,"Kolor","Czarny (z możliwymi kolorowymi dodatkami np. czerwonymi)"]
[]
[{"$nulls":3},"System nagłośnienia (subwoofer) "]
[null,1.37,"Liczba kanałów",2.1]
[null,null,"Subwoofer","Bezprzewodowy"]
[null,null,"Moc zestawu","min. 300 W"]
[null,null,"Łączność bezprzewodowa","Bluetooth"]
[null,null,"Systemy dźwięku","Dolby Digital"]
[{"$nulls":3},"Dolby Audio"]
[null,null,"Odtwarzane formaty plików","MP3"]
[{"$nulls":3},"WAV"]
[{"$nulls":3},"WMA"]
[{"$nulls":3},"OGG"]
[{"$nulls":3},"FLAC"]
[null,null,"Rodzaje wejść","min. USB 1 szt."]
[{"$nulls":3},"min. HDMI 1 szt."]
[{"$nulls":3},"min. Optyczne 1 szt."]
[null,null,"Rodzaje wyjść","HDMI - 1 szt."]
[null,null,"Kolor","Czarny"]
[null,null,"Dołączone akcesoria","Pilot"]
[{"$nulls":3},"Kabel optyczny"]
[{"$nulls":3},"Uchwyt do montażu na ścianie"]
[{"$nulls":3},"Baterie do pilota"]
[]
[{"$nulls":3},"Monitor interaktywny z montażem nasciennym"]
[null,1.38,"Rodzaj:","Monitor interaktywny (dotykowy)"]
[null,null,"Rodzaj panelu:","LED, DLED"]
[null,null,"przekątna:","min. 84 cali"]
[null,null,"Strumieniowanie obrazu do urządzeń mobilnych:","Tak"]
[null,null,"Rozdzielczość:","min 4K (3840 x 2160 px)"]
[null,null,"Format:","16x9"]
[null,null,"Jasność:","min. 350 cd/m2"]
[null,null,"Kąt widzenia:","min. 178"]
[null,null,"Ilość pkt dotyku:","min. 20 pkt"]
[null,null,"Dokładność:","min. 1 mm"]
[null,null,"Głośniki:","min. 2 x 15W"]
[null,null,"Pozycja głośników:","Przód"]
[null,null,"Powierzchnia Antyodblaskowa:","TAK"]
[null,null,"WiFi:","TAK 2.4 Ghz / 5 Ghz"]
[null,null,"Tryb tablicy interaktywnej:","TAK"]
[null,null,"Formaty multimedialne:","min. JPEG. BMP. PNG Video | MPEG1. MPEG2. MPEG4. H.264. H.265. RM. RMVB. MOV. MJPEG. VC1. DivX. FLV (Support 1080P. 4K HD Decoding) Audio| MP3. M4A. (AAC)"]
[null,null,"Wsparcie dla drukarek WIFI:","TAK"]
[null,null,"Wejścia HDMI:","min. 2 szt."]
[null,null,"Wyjścia HDMI:","min. 1 szt. "]
[null,null,"DisplayPort:","Tak"]
[null,null,"Wejścia jack 3.5mm:","Tak"]
[null,null,"LAN:","Tak"]
[null,null,"Sposób montażu:","Ścienny lub na podstawie mobilnej"]
[null,null,"W zestawie:","Kabel USB min. 5M, Pilot, Kabel HDMI (min. 5m),  Piórko, Uchwyt naścienny "]
[null,null,"Uwaga","Wymagany jest montaż przez sprzedającego u zamawiającego"]
[]
[{"$nulls":3},"Telewizor z montażem naściennym"]
[null,1.39,"Przekątna ekranu","43\""]
[null,null,"Rozdzielczość","UHD 4K 3840 x 2160"]
[null,null,"Częstotliwość odświeżania","min. 60 Hz"]
[null,null,"Typ telewizora","LED lub OLED, QLED"]
[null,null,"Smart TV","Tak"]
[null,null,"HDR","Tak"]
[null,null,"Wbudowany tuner","DVB-S2 (cyfrowy satelitarny)"]
[{"$nulls":3},"DVB-T2 (cyfrowy naziemny)"]
[{"$nulls":3},"DVB-C (cyfrowy kablowy)"]
[null,null,"Łączność bezprzewodowa","Wi-Fi"]
[{"$nulls":3},"DLNA"]
[{"$nulls":3},"Bluetooth"]
[null,null,"Liczba złączy HDMI","min. 3 szt."]
[null,null,"Liczba złączy USB","min. 1 szt."]
[null,null,"Pozostałe złącza","Wejście antenowe - 2 szt."]
[{"$nulls":3},"Wejście Ethernet RJ 45 (LAN)"]
[{"$nulls":3},"Wyjście audio cyfrowe (optyczne S/PDIF)"]
[null,null,"Moc głośników","min. 2 x 10 W"]
[null,null,"Kolor obudowy","Czarny lub szary"]
[null,null,"Standard VESA","200 x 200 mm"]
[null,null,"Dołączone akcesoria","Pilot"]
[{"$nulls":3},"Baterie do pilota"]
[{"$nulls":3},"Podstawa telewizora"]
[{"$nulls":3},"Instrukcja obsługi"]
[{"$nulls":3},"Kabel zasilający"]
[{"$nulls":3},"Uchwyt ścienny"]
[null,null,"Uwaga","Wymagany jest montaż przez sprzedającego u zamawiającego"]
[]
[{"$nulls":3},"Laptop ver. 5"]
[null,"1.40","Procesor","Apple M2 "]
[null,null,"Ilość rdzeni procesora",8]
[null,null,"Pamięć RAM","16 GB (pamięć zunifikowana)"]
[null,null,"Dyski SSD PCIe ","512 GB"]
[null,null,"Typ ekranu","Błyszczący, LED, IPS, Retina"]
[null,null,"Przekątna ekranu","13,3\""]
[null,null,"Rozdzielczość ekranu","2560 x 1600 (WQXGA)"]
[null,null,"Dźwięk","Wbudowane głośniki stereo"]
[{"$nulls":3},"Wbudowane trzy mikrofony"]
[null,null,"Kamera internetowa","FaceTime HD"]
[{"$nulls":3},"1.0 Mpix"]
[null,null,"Łączność","Wi-Fi 6"]
[{"$nulls":3},"Moduł Bluetooth 5.0"]
[null,null,"Złącza","USB Typu-C (z Thunderbolt™ 4) - 2 szt."]
[{"$nulls":3},"Wyjście słuchawkowe/wejście mikrofonowe - 1 szt."]
[null,null,"Czytnik linii papilarnych","Tak"]
[{"$nulls":3},"Czujniki"]
[{"$nulls":3},"Czujnik światła"]
[null,null,"Podświetlana klawiatura","Tak"]
[null,null,"Kolor podświetlenia klawiatury","Biały"]
[null,null,"Zabezpieczenia","Szyfrowanie TPM"]
[{"$nulls":3},"Czytnik Touch ID"]
[null,null,"System operacyjny","macOS Monterey"]
[null,null,"Dołączone oprogramowanie","Partycja recovery (opcja przywrócenia systemu z dysku)"]
[null,null,"Dołączone akcesoria","Zasilacz"]
[{"$nulls":3},"Kabel USB Typu-C"]
[{"$nulls":3},"Torba, mysz bezprzewodowa (mała)"]
[]
[{"$nulls":3},"Laptop ver. 6"]
[null,1.41,"typ","Komputer przenośny typu  laptop. Przeznaczony dla edycji grafiki i programów VR"]
[null,null,"Procesor"," - zgodny z architekturą x86 i x64"]
[{"$nulls":3}," - osiągający, co najmniej 28000 punktów w teście wydajnościowym PassMark CPU Benchmarks "]
[null,null,"Pamięć RAM","min. 16 GB "]
[null,null,"Dysk twardy","min. SSD 1 TB"]
[null,null,"Ilość rdzeni","min. 14"]
[null,null,"Typ ekranu","Matowy, LED, IPS"]
[null,null,"Przekątna ekranu","min. 17,3"]
[null,null,"Rozdzielczość ekranu","2560 x 1440 (WQHD) lub 1920 x 1080 (Full HD)"]
[null,null,"Karta graficzna","zintegrowana z procesorem oraz druga dedykowana z obsługą dekodowania sprzętowego VP9 i HEVC"]
[{"$nulls":3},"Pamięć dedyowanej kart graficznej min. 8 GB GDDR6 "]
[{"$nulls":3}," Dedykowana karta graficzna osiągająca, co najmniej 30000 punktów w teście wydajnościowym PassMark GPU Benchmarks "]
[null,null,"Częstotliwość odświeżania ekranu","min. 240 Hz"]
[null,null,"Dźwięk","Zintegrowana karta dźwiękowa"]
[{"$nulls":3},"Wbudowany mikrofon"]
[{"$nulls":3},"Wbudowane głośniki stereo"]
[null,null,"Kamera internetowa","min. 1.0 Mpix"]
[null,null,"Łączność","min. Wi-Fi 6"]
[{"$nulls":3},"Moduł Bluetooth"]
[null,null,"Rodzaje wejść / wyjść","HDMI"]
[{"$nulls":3},"USB Typu-C (z DisplayPort i Power Delivery)"]
[{"$nulls":3},"Wyjście słuchawkowe/wejście mikrofonowe"]
[{"$nulls":3},"min. USB 3.2 Gen. 1 "]
[null,null,"Dodatkowe informacje","Wielodotykowy, intuicyjny touchpad"]
[{"$nulls":3},"Torba, mysz bezprzewodowa (mała)"]
[null,null,"Pakiet oprogramowania biurowego","Rozszerzenie posiadanej i wykorzystywanej przez zamawiającego licencji na pakiet oprogramowania biurowego  \"MS Office Professional Plus 2019 EDU dla szkół i Uczelni lub oprogramowanie równorzędne. Licencja wieczysta (dożywotnia).  \nTenant do office:  officeapsl.onmicrosoft.com\n\nWymogi równorzedności zostały opisane w \"Przypisie 2\""]
[null,null,"zainstalowany system operacyjny","Preinstalowany system operacyjny ver. 1,  klasy PC musi spełniać  wymagania według poniższego załącznika  (przypis 1) poprzez wbudowane mechanizmy, bez użycia dodatkowych aplikacji (np. Windows 10 / 11  lub równoważny wg opisu )."]
[]
[{"$nulls":3},"Zestaw wideorejestratora z funkcją kamery"]
[null,1.42,"KAMERA"]
[null,null,"Opis","kamera HD z 4-kanałowym rejestratorem audio"]
[null,null,"Obiektyw","160 stopni, F2.8"]
[null,null,"Zoom:","cyfrowy zoom x4"]
[null,null,"Sensor obrazu:","1/3 calowa matryca CMOS o rozdzielczości 3 Mpx."]
[null,null,"Nagrywanie:","MOV max. 3M HD (2304 x 1296 pikseli przy 30 fps /24 mb/s)"]
[null,null,"Nagrywanie audio:","AAC lub WAV do 24-bit/96k"]
[null,null,"Funkcje:","streaming \"na żywo\""]
[{"$nulls":3},"kamera internetowa, mikrofon USB"]
[{"$nulls":3},"wymienne kapsuły X/Y"]
[{"$nulls":3},"możliwość podłączenia dwóch mikrofonów ze złączem XLR/TRS"]
[null,null,"Zapis:","SD/SDXC do 128 GB"]
[null,null,"Wyświetlacz:","wyświetlacz LCD dotykowy 2.7\""]
[null,null,"Głośnik:","wbudowany"]
[null,null,"Złącza:","wyjście słuchawkowe mini Jack, micro HDMi typ D; wejścia: 2 x XLR/TRS"]
[{"$nulls":3},"port USB mini B"]
[null,null,"Zasilanie:","zasilanie: akumulator Li-ion DC 4.2 V lub zasilacz (opcjonalnie) Zoom AD-14: DC 5 V / 1 A"]
[null,null,"MIKROFON "]
[null,null,"Typ mikrofonu:","przewodowy"]
[null,null,"Typ złącza:","XLR"]
[null,null,"Rodzaj przetwornika:","dynamiczny"]
[null,null,"Impedancja:","150 Om"]
[null,null,"Czułość mikrofonu:","-56 dB"]
[null,null,"Zasilanie:","zewnętrzne"]
[null,null,"Pasmo przenoszenia:","70 ~ 15000 Hz"]
[null,null,"Dodatkowe informacje:","Metalowa konstrukcja; wielowarstwowa siatka chroniąca przed wiatrem; zaprojektowany z myślą o reprodukcji ludzkiego głosu"]
[null,null,"Zestaw zawiera","mikrofon"]
[{"$nulls":3}," pokrowiec"]
[{"$nulls":3}," osłona (flaga)"]
[null,null,"BEZPRZEWODOWY SYSTEM MIKROFONOWY"]
[null,null,"Opis:","Kompaktowy zestaw bezprzewodowy przeznaczony do mikrofonów dynamicznych i klapowych. "]
[null,null,"Liczba kanałów: ",6]
[null,null,"Częstotliwości:","2,4 GHz"]
[null,null,"System: ","2,4 GHz"]
[null,null,"Antena zewnętrzna:","Nie"]
[null,null,"Wyjścia:"," 2x Jack 3,5 mm TRS"]
[]
[{"$nulls":3},"Wymagane podpisanie kwalifikowanym podpisem elektronicznym"]
[null,"Przypis 1. Wymagania które musi spełniać system operacyjny ver.1 "]
[null,1,"Dostępne dwa rodzaje graficznego interfejsu użytkownika:"]
[null,null,"a. Klasyczny, umożliwiający obsługę przy pomocy klawiatury i myszy,"]
[null,null,"b. Dotykowy umożliwiający sterowanie dotykiem na urządzeniach typu tablet lub monitorach dotykowych"]
[null,2,"Interfejs użytkownika dostępny w wielu językach do wyboru – w tym polskim i angielskim"]
[null,3,"Możliwość tworzenia pulpitów wirtualnych, przenoszenia aplikacji pomiędzy pulpitami i przełączanie się pomiędzy pulpitami za pomocą skrótów klawiaturowych lub GUI."]
[null,4,"Wbudowane w system operacyjny minimum dwie przeglądarki Internetowe"]
[null,5,"Zintegrowany z systemem moduł wyszukiwania informacji (plików różnego typu, tekstów, metadanych) dostępny z kilku poziomów: poziom menu, poziom otwartego okna systemu operacyjnego; "]
[null,6,"Zlokalizowane w języku polskim, co najmniej następujące elementy: menu, pomoc, komunikaty systemowe, menedżer plików."]
[null,7,"Graficzne środowisko instalacji i konfiguracji dostępne w języku polskim"]
[null,8,"Wbudowany system pomocy w języku polskim."]
[null,9,"Możliwość przystosowania stanowiska dla osób niepełnosprawnych (np. słabo widzących)."]
[null,10,"Możliwość dokonywania aktualizacji i poprawek systemu poprzez mechanizm zarządzany przez administratora systemu Zamawiającego."]
[null,11,"Możliwość dostarczania poprawek do systemu operacyjnego w modelu peer-to-peer."]
[null,12,"Zabezpieczony hasłem hierarchiczny dostęp do systemu, konta i profile użytkowników zarządzane zdalnie; praca systemu w trybie ochrony kont użytkowników."]
[null,13,"Możliwość dołączenia systemu do usługi katalogowej on-premise lub w chmurze."]
[null,14,"Umożliwienie zablokowania urządzenia w ramach danego konta tylko do uruchamiania wybranej aplikacji - tryb \"kiosk\"."]
[null,15,"Zdalna pomoc i współdzielenie aplikacji – możliwość zdalnego przejęcia sesji zalogowanego użytkownika celem rozwiązania problemu z komputerem."]
[null,16,"Transakcyjny system plików pozwalający na stosowanie przydziałów (ang. quota) na dysku dla użytkowników oraz zapewniający większą niezawodność i pozwalający tworzyć kopie zapasowe."]
[null,17,"Oprogramowanie dla tworzenia kopii zapasowych (Backup); automatyczne wykonywanie kopii plików z możliwością automatycznego przywrócenia wersji wcześniejszej."]
[null,18,"Możliwość przywracania obrazu plików systemowych do uprzednio zapisanej postaci."]
[null,19,"Możliwość przywracania systemu operacyjnego do stanu początkowego z pozostawieniem plików użytkownika."]
[null,20,"Możliwość blokowania lub dopuszczania dowolnych urządzeń peryferyjnych za pomocą polityk grupowych (np. przy użyciu numerów identyfikacyjnych sprzętu).\""]
[null,21,"Wbudowany mechanizm wirtualizacji typu hypervisor.\""]
[null,22,"Wbudowana możliwość zdalnego dostępu do systemu i pracy zdalnej z wykorzystaniem pełnego interfejsu graficznego."]
[null,23,"Dostępność bezpłatnych biuletynów bezpieczeństwa związanych z działaniem systemu operacyjnego."]
[null,24,"Wbudowana zapora internetowa (firewall) dla ochrony połączeń internetowych, zintegrowana z systemem konsola do zarządzania ustawieniami zapory i regułami IP v4 i v6."]
[null,25,"Identyfikacja sieci komputerowych, do których jest podłączony system operacyjny, zapamiętywanie ustawień i przypisywanie do min. 3 kategorii bezpieczeństwa \n(z predefiniowanymi odpowiednio do kategorii ustawieniami zapory sieciowej, udostępniania plików itp.)."]
[null,26,"Możliwość zdefiniowania zarządzanych aplikacji w taki sposób aby automatycznie szyfrowały pliki na poziomie systemu plików. Blokowanie bezpośredniego kopiowania treści między aplikacjami zarządzanymi a niezarządzanymi."]
[null,27,"Wbudowany system uwierzytelnienia dwuskładnikowego oparty o certyfikat lub klucz prywatny oraz PIN lub uwierzytelnienie biometryczne."]
[null,28,"Wbudowane mechanizmy ochrony antywirusowej i przeciw złośliwemu oprogramowaniu z zapewnionymi bezpłatnymi aktualizacjami."]
[null,29,"Wbudowany system szyfrowania dysku twardego ze wsparciem modułu TPM"]
[null,30,"Możliwość tworzenia i przechowywania kopii zapasowych kluczy odzyskiwania do szyfrowania dysku w usługach katalogowych."]
[null,31,"Możliwość tworzenia wirtualnych kart inteligentnych."]
[null,32,"Wsparcie dla firmware UEFI i funkcji bezpiecznego rozruchu (Secure Boot)"]
[null,33,"Wbudowany w system, wykorzystywany automatycznie przez wbudowane przeglądarki filtr reputacyjny URL."]
[null,34,"Wsparcie dla IPSEC oparte na politykach – wdrażanie IPSEC oparte na zestawach reguł definiujących ustawienia zarządzanych w sposób centralny."]
[null,35,"Mechanizmy logowania w oparciu o:"]
[null,null,"a. Login i hasło,"]
[null,null,"b. Karty inteligentne i certyfikaty (smartcard),"]
[null,null,"c. Wirtualne karty inteligentne i certyfikaty (logowanie w oparciu o certyfikat chroniony poprzez moduł TPM),"]
[null,null,"d. Certyfikat/Klucz i PIN"]
[null,null,"e. Certyfikat/Klucz i uwierzytelnienie biometryczne"]
[null,36,"Wsparcie dla uwierzytelniania na bazie Kerberos v. 5"]
[null,37,"Wbudowany agent do zbierania danych na temat zagrożeń na stacji roboczej."]
[null,38,"Wsparcie .NET Framework 2.x, 3.x i 4.x – możliwość uruchomienia aplikacji działających we wskazanych środowiskach"]
[null,39,"Wsparcie dla VBScript – możliwość uruchamiania interpretera poleceń"]
[null,40,"Wsparcie dla PowerShell 5.x – możliwość uruchamiania interpretera poleceń"]
[]
[null,"Przypis 2. Wymagania dotyczące \"Pakietu oprogramowania biurowego\"  "]
[null,null,"Rozszerzenie posiadanej i wykorzystywanej przez zamawiającego licencji na pakiet oprogramowania biurowego  \"MS Office Professional Plus 2019 EDU dla szkół i Uczelni - MOLP\". Licencja wieczysta (dożywotnia).  Numer licencja MOLP zamawiającego  67862490 ."]
[null,null,"Zamawiający uzna pakiet oprogramowania biurowego za równoważny określonemu w SIWZ, gdy spełni poniższe wymagania:"]
[null,null,"Oprogramowanie biurowe w najnowszej dostępnej na rynku wersji. Zamawiający nie dopuszcza zaoferowania pakietów biurowych, programów i planów licencyjnych opartych o rozwiązania chmury oraz rozwiązań wymagających stałych opłat w okresie używania zakupionego produktu."]
[null,null,"Dla oprogramowania musi być publicznie znany cykl życia przedstawiony przez producenta systemu i dotyczący rozwoju wsparcia technicznego – w szczególności w zakresie bezpieczeństwa. Wymagane jest prawo do instalacji aktualizacji i poprawek do danej wersji oprogramowania, udostępnianych bezpłatnie przez producenta na jego stronie internetowej w okresie co najmniej 5 lat."]
[null,null,"Zamawiający wymaga, aby wszystkie elementy oprogramowania biurowego oraz jego licencja pochodziły od tego samego producenta.  Zawierające w pakiecie przynajmniej edytor tekstu, arkusz kalkulacyjny, program do tworzenia prezentacji. Aplikacja do tworzenia prezentacji powinna umożliwiać udostępnianie prezentacji przy użyciu przeglądarki internetowej bez potrzeby instalowania dodatkowych elementów ani konfigurowania. Do każdej prezentacji można dodać wciągające wideo, aby zwrócić uwagę odbiorców. Nagrania wideo można wstawiać bezpośrednio w programie, a następnie dostosowywać je, przycinać lub oznaczać najważniejsze sceny w nagraniu zakładkami, aby zwrócić na nie szczególną uwagę. Wstawiane nagrania są domyślnie osadzone, dzięki czemu nie trzeba zarządza dodatkowymi plikami wideo. Pliki programów edytora tekstów, arkusza kalkulacyjnego i programu do tworzenia prezentacji można przechowywać online i uzyskiwać do nich dostęp, przeglądać, edytować i udostępniać innym użytkownikom."]
[null,null,"Pakiet biurowy musi spełniać następujące wymagania:"]
[null,1,"Wymagania odnośnie interfejsu użytkownika:"]
[null,null,"a. Pełna polska wersja językowa interfejsu użytkownika"]
[null,null,"b. Prostota i intuicyjność obsługi, pozwalająca na pracę osobom nieposiadającym umiejętności technicznych"]
[null,null,"c. Możliwość zintegrowania uwierzytelniania użytkowników z usługą katalogową (Active Directory lub funkcjonalnie równoważną) – użytkownik raz zalogowany z poziomu   systemu operacyjnego stacji roboczej  ma być automatycznie rozpoznawany we wszystkich modułach oferowanego rozwiązania bez potrzeby oddzielnego monitowania  go o ponowne uwierzytelnienie się."]
[null,2,"Oprogramowanie musi umożliwiać tworzenie i edycję dokumentów elektronicznych w ustalonym formacie, który spełnia następujące warunki:"]
[null,null,"a. posiada kompletny i publicznie dostępny opis formatu,"]
[null,null,"c. umożliwia wykorzystanie schematów XML"]
[null,3,"Oprogramowanie musi umożliwiać dostosowanie dokumentów i szablonów do potrzeb instytucji oraz udostępniać narzędzia umożliwiające dystrybucję odpowiednich szablonów do właściwych odbiorców."]
[null,4,"W skład oprogramowania muszą wchodzić narzędzia programistyczne umożliwiające automatyzację pracy i wymianę danych pomiędzy dokumentami i aplikacjami (język makropoleceń, język skryptowy)"]
[null,5,"Do aplikacji musi być dostępna pełna dokumentacja w języku polskim."]
[null,6,"Pakiet zintegrowanych aplikacji biurowych musi zawierać:"]
[null,null,"a. Edytor tekstów"]
[null,null,"b. Arkusz kalkulacyjny"]
[null,null,"c. Narzędzie do przygotowywania i prowadzenia prezentacji"]
[null,null,"d. Narzędzie do tworzenia drukowanych materiałów informacyjnych"]
[null,null,"e. Narzędzie do zarządzania informacją prywatą (pocztą elektroniczną, kalendarzem, kontaktami i zadaniami),"]
[null,7,"Edytor tekstów musi umożliwiać:"]
[null,null,"a.  Edycję i formatowanie tekstu w języku polskim wraz z obsługą języka polskiego w zakresie sprawdzania pisowni i poprawności gramatycznej oraz funkcjonalnością słownika wyrazów \n     bliskoznacznych i autokorekty"]
[null,null,"b.  Wstawianie oraz formatowanie tabel"]
[null,null,"c.  Wstawianie oraz formatowanie obiektów graficznych"]
[null,null,"d.  Wstawianie wykresów i tabel z arkusza kalkulacyjnego (wliczając tabele przestawne)"]
[null,null,"e.  Automatyczne numerowanie rozdziałów, punktów, akapitów, tabel i rysunków"]
[null,null,"f.   Automatyczne tworzenie spisów treści"]
[null,null,"g.  Formatowanie nagłówków i stopek stron "]
[null,null,"h.  Sprawdzanie pisowni w języku polskim"]
[null,null,"i.   Śledzenie zmian wprowadzonych przez użytkowników"]
[null,null,"j.   Nagrywanie, tworzenie i edycję makr automatyzujących wykonywanie czynności"]
[null,null,"k.  Określenie układu strony (pionowa/pozioma)"]
[null,null,"l.   Wydruk dokumentów"]
[null,null,"m. Wykonywanie korespondencji seryjnej bazując na danych adresowych pochodzących z arkusza kalkulacyjnego i z narzędzia do zarządzania informacją prywatną"]
[null,null,"n.  Pracę na dokumentach utworzonych przy pomocy Microsoft Word 2003 lub Microsoft Word 2007 i 2010 z zapewnieniem bezproblemowej konwersji wszystkich elementów  i atrybutów dokumentu"]
[null,null,"o.  Zabezpieczenie dokumentów hasłem przed odczytem oraz przed wprowadzaniem modyfikacji"]
[null,null,"p.  Wymagana jest dostępność do oferowanego edytora tekstu bezpłatnych narzędzi (kontrolki) umożliwiających podpisanie podpisem elektronicznym pliku z zapisanym \n     dokumentem przy pomocy  certyfikatu kwalifikowanego zgodnie  z wymaganiami obowiązującego w Polsce prawa."]
[null,8,"Arkusz kalkulacyjny musi umożliwiać:"]
[null,null,"a.  Tworzenie raportów tabelarycznych"]
[null,null,"b.  Tworzenie wykresów liniowych (wraz linią trendu), słupkowych, kołowych"]
[null,null,"c.  Tworzenie arkuszy kalkulacyjnych zawierających teksty, dane liczbowe oraz formuły przeprowadzające operacje matematyczne, logiczne, tekstowe, statystyczne oraz \n     operacje na danych finansowych  i na miarach czasu."]
[null,null,"d.  Tworzenie raportów z zewnętrznych źródeł danych (inne arkusze kalkulacyjne, bazy danych zgodne z ODBC, pliki tekstowe, pliki XML, webservice)"]
[null,null,"e.  Obsługę kostek OLAP oraz tworzenie i edycję kwerend bazodanowych i webowych. Narzędzia wspomagające analizę statystyczną i finansową, analizę wariantową  i rozwiązywanie problemów optymalizacyjnych"]
[null,null,"f.   Tworzenie raportów tabeli przestawnych umożliwiających dynamiczną zmianę wymiarów oraz wykresów bazujących na danych z tabeli przestawnych"]
[null,null,"g.  Wyszukiwanie i zamianę danych"]
[null,null,"h.  Wykonywanie analiz danych przy użyciu formatowania warunkowego"]
[null,null,"i.   Nazywanie komórek arkusza i odwoływanie się w formułach po takiej nazwie"]
[null,null,"j.   Nagrywanie, tworzenie i edycję makr automatyzujących wykonywanie czynności"]
[null,null,"k.  Formatowanie czasu, daty i wartości finansowych z polskim formatem"]
[null,null,"l.   Zapis wielu arkuszy kalkulacyjnych w jednym pliku."]
[null,null,"m. Zachowanie pełnej zgodności z formatami plików utworzonych za pomocą oprogramowania Microsoft Excel 2003 oraz Microsoft Excel 2007 i 2010, z uwzględnieniem \n     poprawnej realizacji użytych w nich  funkcji specjalnych i makropoleceń.."]
[null,null,"n.  Zabezpieczenie dokumentów hasłem przed odczytem oraz przed wprowadzaniem modyfikacji"]
[null,9,"Narzędzie do przygotowywania i prowadzenia prezentacji musi umożliwiać:"]
[null,null,"a.  Przygotowywanie prezentacji multimedialnych, które będą:"]
[null,null,"b.  Prezentowanie przy użyciu projektora multimedialnego"]
[null,null,"c.  Drukowanie w formacie umożliwiającym robienie notatek"]
[null,null,"d.  Zapisanie jako prezentacja tylko do odczytu."]
[null,null,"e.  Nagrywanie narracji i dołączanie jej do prezentacji"]
[null,null,"f.   Opatrywanie slajdów notatkami dla prezentera"]
[null,null,"g.  Umieszczanie i formatowanie tekstów, obiektów graficznych, tabel, nagrań dźwiękowych i wideo "]
[null,null,"h.  Umieszczanie tabel i wykresów pochodzących z arkusza kalkulacyjnego"]
[null,null,"i.   Odświeżenie wykresu znajdującego się w prezentacji po zmianie danych w źródłowym arkuszu kalkulacyjnym"]
[null,null,"j.   Możliwość tworzenia animacji obiektów i całych slajdów"]
[null,null,"k.  Prowadzenie prezentacji w trybie prezentera, gdzie slajdy są widoczne na jednym monitorze lub projektorze, a na drugim widoczne są slajdy i notatki prezentera"]
[null,null,"l.   Pełna zgodność z formatami plików utworzonych za pomocą oprogramowania MS PowerPoint 2003, MS PowerPoint 2007 i 2010."]
[null,10,"Narzędzie do tworzenia drukowanych materiałów informacyjnych musi umożliwiać:"]
[null,null,"a.  Tworzenie i edycję drukowanych materiałów informacyjnych"]
[null,null,"b.  Tworzenie materiałów przy użyciu dostępnych z narzędziem szablonów: broszur, biuletynów, katalogów."]
[null,null,"c.  Edycję poszczególnych stron materiałów."]
[null,null,"d.  Podział treści na kolumny."]
[null,null,"e.  Umieszczanie elementów graficznych."]
[null,null,"f.   Wykorzystanie mechanizmu korespondencji seryjnej"]
[null,null,"g.  Płynne przesuwanie elementów po całej stronie publikacji."]
[null,null,"h.  Eksport publikacji do formatu PDF oraz TIFF."]
[null,null,"i.   Wydruk publikacji."]
[null,null,"j.   Możliwość przygotowywania materiałów do wydruku w standardzie CMYK."]
[null,11,"Narzędzie do zarządzania informacją prywatną (pocztą elektroniczną, kalendarzem, kontaktami i zadaniami) musi umożliwiać:"]
[null,null,"a.  Pobieranie i wysyłanie poczty elektronicznej z serwera pocztowego"]
[null,null,"b.  Filtrowanie niechcianej poczty elektronicznej (SPAM) oraz określanie listy zablokowanych i bezpiecznych nadawców"]
[null,null,"c.  Tworzenie katalogów, pozwalających katalogować pocztę elektroniczną"]
[null,null,"d.  Automatyczne grupowanie poczty o tym samym tytule"]
[null,null,"e.  Tworzenie reguł przenoszących automatycznie nową pocztę elektroniczną do określonych katalogów bazując na słowach zawartych w tytule, adresie nadawcy i odbiorcy"]
[null,null,"f.   Oflagowanie poczty elektronicznej z określeniem terminu przypomnienia"]
[null,null,"g.  Zarządzanie kalendarzem"]
[null,null,"h.  Udostępnianie kalendarza innym użytkownikom"]
[null,null,"i.   Przeglądanie kalendarza innych użytkowników"]
[null,null,"j.   Zapraszanie uczestników na spotkanie, co po ich akceptacji powoduje automatyczne wprowadzenie spotkania w ich kalendarzach"]
[null,null,"k.  Zarządzanie listą zadań"]
[null,null,"l.   Zlecanie zadań innym użytkownikom"]
[null,null,"m. Zarządzanie listą kontaktów"]
[null,null,"n.  Udostępnianie listy kontaktów innym użytkownikom"]
[null,null,"o.  Przeglądanie listy kontaktów innych użytkowników"]
[null,null,"p.  Możliwość przesyłania kontaktów innym użytkowników"]
[]
[null,null,"UWAGA."]
[null,null,"Obowiązek wykazania równoważności zaoferowanego pakietu oprogramowania biurowego leży  po stronie Wykonawcy. \nW tym celu Wykonawca winien przedstawić oświadczenie i dokumenty potwierdzające równoważność pakietu oprogramowania biurowego"]

{"sheet":"Zał. 2 Formularz asort. ilości1","index":3,"n_rows":43,"n_cols":11,"rows_kept":43,"merged":[[3,1,37,1]]}
[{"$nulls":3},"ZAŁĄCZNIK  nr 2  Formularz asortymentowo-ilościowy"]
[]
[{"$nulls":3},"Ogólnouczelniane\ncz. I",null,"ILOŚĆ","CENA JEDN. \nNETTO","WARTOŚĆ\nNETTO","STAWKA VAT","WARTOŚĆ VAT","WARTOŚĆ\nBRUTTO"]
[null,"I",1,{"$f":"Ogólnouczelniane!C4","v":"Komputer stacjonarny ver. 1"},{"$f":"Ogólnouczelniane!D4","v":"1.01"},{"$f":"Ogólnouczelniane!T4","v":7}]
[null,null,2,{"$f":"Ogólnouczelniane!C5","v":"Komputer stacjonarny ver. 2"},{"$f":"Ogólnouczelniane!D5","v":"1.02"},{"$f":"Ogólnouczelniane!T5","v":5}]
[null,null,3,{"$f":"Ogólnouczelniane!C6","v":"Monitor ver. 1"},{"$f":"Ogólnouczelniane!D6","v":1.03},{"$f":"Ogólnouczelniane!T6","v":9}]
[null,null,4,{"$f":"Ogólnouczelniane!C7","v":"Monitor ver. 2"},{"$f":"Ogólnouczelniane!D7","v":1.04},{"$f":"Ogólnouczelniane!T7","v":4}]
[null,null,5,{"$f":"Ogólnouczelniane!C8","v":"Monitor ver. 3"},{"$f":"Ogólnouczelniane!D8","v":1.05},{"$f":"Ogólnouczelniane!T8","v":1}]
[null,null,6,{"$f":"Ogólnouczelniane!C9","v":"Laptop ver. 1"},{"$f":"Ogólnouczelniane!D9","v":1.06},{"$f":"Ogólnouczelniane!T9","v":1}]
[null,null,7,{"$f":"Ogólnouczelniane!C10","v":"Laptop ver. 2"},{"$f":"Ogólnouczelniane!D10","v":1.07},{"$f":"Ogólnouczelniane!T10","v":4}]
[null,null,8,{"$f":"Ogólnouczelniane!C11","v":"Laptop ver. 3"},{"$f":"Ogólnouczelniane!D11","v":1.08},{"$f":"Ogólnouczelniane!T11","v":2}]
[null,null,9,{"$f":"Ogólnouczelniane!C12","v":"Laptop ver. 4"},{"$f":"Ogólnouczelniane!D12","v":1.09},{"$f":"Ogólnouczelniane!T12","v":2}]
[null,null,10,{"$f":"Ogólnouczelniane!C13","v":"Tablet ver. 1"},{"$f":"Ogólnouczelniane!D13","v":"1.10"},{"$f":"Ogólnouczelniane!T13","v":1}]
[null,null,11,{"$f":"Ogólnouczelniane!C14","v":"Tablet ver. 2"},{"$f":"Ogólnouczelniane!D14","v":"1.11"},{"$f":"Ogólnouczelniane!T14","v":1}]
[null,null,12,{"$f":"Ogólnouczelniane!C15","v":"Ekran ścienny 4:3 ręcznie rozwijany"},{"$f":"Ogólnouczelniane!D15","v":1.12},{"$f":"Ogólnouczelniane!T15","v":9}]
[null,null,13,{"$f":"Ogólnouczelniane!C16","v":"Urządzenie wielofunkcyjne atramentowe"},{"$f":"Ogólnouczelniane!D16","v":"1.13"},{"$f":"Ogólnouczelniane!T16","v":1}]
[null,null,14,{"$f":"Ogólnouczelniane!C17","v":"Edytor grafiki wektorowej"},{"$f":"Ogólnouczelniane!D17","v":"1.14"},{"$f":"Ogólnouczelniane!T17","v":1}]
[null,null,15,{"$f":"Ogólnouczelniane!C18","v":"Zewnętrzny dysk SSD"},{"$f":"Ogólnouczelniane!D18","v":"1.15"},{"$f":"Ogólnouczelniane!T18","v":10}]
[null,null,16,{"$f":"Ogólnouczelniane!C19","v":"Kamera internetowa USB z mikrofonem "},{"$f":"Ogólnouczelniane!D19","v":"1.16"},{"$f":"Ogólnouczelniane!T19","v":1}]
[null,null,17,{"$f":"Ogólnouczelniane!C20","v":"Urządzenie wielofunkcyjne laserowe"},{"$f":"Ogólnouczelniane!D20","v":"1.17"},{"$f":"Ogólnouczelniane!T20","v":6}]
[null,null,18,{"$f":"Ogólnouczelniane!C21","v":"Głosniki Bluetooth"},{"$f":"Ogólnouczelniane!D21","v":"1.18"},{"$f":"Ogólnouczelniane!T21","v":1}]
[null,null,19,{"$f":"Ogólnouczelniane!C22","v":"Switch rack"},{"$f":"Ogólnouczelniane!D22","v":"1.19"},{"$f":"Ogólnouczelniane!T22","v":4}]
[null,null,20,{"$f":"Ogólnouczelniane!C23","v":"Klawiatura i myszka bezprzewodowa"},{"$f":"Ogólnouczelniane!D23","v":"1.20"},{"$f":"Ogólnouczelniane!T23","v":7}]
[null,null,21,{"$f":"Ogólnouczelniane!C24","v":"Urządzenie testujące sieć LAN"},{"$f":"Ogólnouczelniane!D24","v":"1.21"},{"$f":"Ogólnouczelniane!T24","v":2}]
[null,null,22,{"$f":"Ogólnouczelniane!C25","v":"Słuchawki nauszne z mikrofonem"},{"$f":"Ogólnouczelniane!D25","v":1.22},{"$f":"Ogólnouczelniane!T25","v":3}]
[null,null,23,{"$f":"Ogólnouczelniane!C26","v":"Dysk SSD 1TB"},{"$f":"Ogólnouczelniane!D26","v":1.23},{"$f":"Ogólnouczelniane!T26","v":4}]
[null,null,24,{"$f":"Ogólnouczelniane!C27","v":"Dysk SSD 512 GB SATA"},{"$f":"Ogólnouczelniane!D27","v":1.24},{"$f":"Ogólnouczelniane!T27","v":26}]
[null,null,25,{"$f":"Ogólnouczelniane!C28","v":"Zasilacz ATX"},{"$f":"Ogólnouczelniane!D28","v":1.25},{"$f":"Ogólnouczelniane!T28","v":3}]
[null,null,26,{"$f":"Ogólnouczelniane!C29","v":"Pamięć DDR4 SODIMM "},{"$f":"Ogólnouczelniane!D29","v":1.26},{"$f":"Ogólnouczelniane!T29","v":2}]
[null,null,27,{"$f":"Ogólnouczelniane!C30","v":"Projektor ver. 1"},{"$f":"Ogólnouczelniane!D30","v":1.27},{"$f":"Ogólnouczelniane!T30","v":1}]
[null,null,28,{"$f":"Ogólnouczelniane!C31","v":"Dysk SSD 512 GB M.2"},{"$f":"Ogólnouczelniane!D31","v":1.28},{"$f":"Ogólnouczelniane!T31","v":47}]
[null,null,29,{"$f":"Ogólnouczelniane!C32","v":"Uchwyt sufitowy"},{"$f":"Ogólnouczelniane!D32","v":1.29},{"$f":"Ogólnouczelniane!T32","v":6}]
[null,null,30,{"$f":"Ogólnouczelniane!C33","v":"Projektor multimedialny ver. 2 krótkoogniskowy"},{"$f":"Ogólnouczelniane!D33","v":"1.30"},{"$f":"Ogólnouczelniane!T33","v":6}]
[null,null,31,{"$f":"Ogólnouczelniane!C34","v":"Zasilacz UPS"},{"$f":"Ogólnouczelniane!D34","v":1.31},{"$f":"Ogólnouczelniane!T34","v":1}]
[null,null,32,{"$f":"Ogólnouczelniane!C35","v":"Pamięć RAM DDR4"},{"$f":"Ogólnouczelniane!D35","v":1.32},{"$f":"Ogólnouczelniane!T35","v":24}]
[null,null,33,{"$f":"Ogólnouczelniane!C36","v":"Przenośny dysk HDD 2,5\""},{"$f":"Ogólnouczelniane!D36","v":1.33},{"$f":"Ogólnouczelniane!T36","v":2}]
[null,null,34,{"$f":"Ogólnouczelniane!C37","v":"Ekran ścienny 16:9 ręcznie rozwijany"},{"$f":"Ogólnouczelniane!D37","v":1.34},{"$f":"Ogólnouczelniane!T37","v":3}]
[null,null,35,{"$f":"Ogólnouczelniane!C38","v":"Ekran ścienny 16:9, elektryczny"},{"$f":"Ogólnouczelniane!D38","v":1.35},{"$f":"Ogólnouczelniane!T38","v":1}]
[]
[{"$nulls":6},"suma",null,"-"]
[]
[]
[{"$nulls":6},"Wymagane podpisanie kwalifikowanym podpisem elektronicznym"]

{"sheet":"Zał. 2 Formularz asort. ilości2","index":4,"n_rows":18,"n_cols":11,"rows_kept":18,"merged":[[3,1,13,1]]}
[{"$nulls":3},"ZAŁĄCZNIK  nr 2  Formularz asortymentowo-ilościowy"]
[]
[{"$nulls":3},"IBiZ\ncz. II",null,"ILOŚĆ","CENA JEDN. \nNETTO","WARTOŚĆ\nNETTO","STAWKA VAT","WARTOŚĆ VAT","WARTOŚĆ\nBRUTTO"]
[null,"II",1,{"$f":"IBNiZ!C4","v":"Komputer stacjonarny ver. 2"},{"$f":"IBNiZ!D4","v":"1.02"},{"$f":"IBNiZ!F4","v":40}]
[null,null,2,{"$f":"IBNiZ!C5","v":"Monitor ver. 1"},{"$f":"IBNiZ!D5","v":1.03},{"$f":"IBNiZ!F5","v":25}]
[null,null,3,{"$f":"IBNiZ!C6","v":"Monitor ver. 3"},{"$f":"IBNiZ!D6","v":1.05},{"$f":"IBNiZ!F6","v":20}]
[null,null,4,{"$f":"IBNiZ!C7","v":"Słuchawki przewodowe nauszne z mikrofonem"},{"$f":"IBNiZ!D7","v":1.36},{"$f":"IBNiZ!F7","v":30}]
[null,null,5,{"$f":"IBNiZ!C8","v":"System nagłośnienia (subwoofer) "},{"$f":"IBNiZ!D8","v":1.37},{"$f":"IBNiZ!F8","v":5}]
[null,null,6,{"$f":"IBNiZ!C9","v":"Monitor interaktywny z montażem nasciennym"},{"$f":"IBNiZ!D9","v":1.38},{"$f":"IBNiZ!F9","v":5}]
[null,null,7,{"$f":"IBNiZ!C10","v":"Telewizor z montażem naściennym"},{"$f":"IBNiZ!D10","v":1.39},{"$f":"IBNiZ!F10","v":4}]
[null,null,8,{"$f":"IBNiZ!C11","v":"Kamera internetowa USB z mikrofonem "},{"$f":"IBNiZ!D11","v":"1.16"},{"$f":"IBNiZ!F11","v":40}]
[null,null,9,{"$f":"IBNiZ!C12","v":"Laptop ver. 5"},{"$f":"IBNiZ!D12","v":"1.40"},{"$f":"IBNiZ!F12","v":3}]
[null,null,10,{"$f":"IBNiZ!C13","v":"Laptop ver. 6"},{"$f":"IBNiZ!D13","v":1.41},{"$f":"IBNiZ!F13","v":3}]
[null,null,11,{"$f":"IBNiZ!C14","v":"Zestaw wideorejestratora z funkcją kamery"},{"$f":"IBNiZ!D14","v":1.42},{"$f":"IBNiZ!F14","v":1}]
[]
[{"$nulls":6},"suma",null,"-"]
[]
[{"$nulls":6},"Wymagane podpisanie kwalifikowanym podpisem elektronicznym"]